Workbook

Sheet Title Page
C12: Solar Water Pumping Worksheet
C13: Authors: Professor Thomas Jenkins, ETSE
C14: Gabriel Bolivar-Mendoza | L14: =TODAY() -> 2014-01-29
C15: Copyright © NMSU 2013
C16: Acknowledgements:
C17: The authors wish to express extreme gratitude for the assistance of the following:
C18: College of Engineering (COE) and Engineering NM: http://engr.nmsu.edu/index.shtml
C19: Cooperative Extension Service: http://extension.nmsu.edu/
C20: New Mexico Space Grant Consortium (NMSGC): http://www.nmspacegrant.com/
C21: Southwest Technology Development Institute (SWTDI) http://www.nmsu.edu/~tdi/
C22: Department of Engineering Technology and Surveying Engineering (ETSE): http://et.nmsu.edu/
C24: Disclaimer: This document is only intended to provide an education tool and should not be used beyond this purpose.
C25: The authors tried to use good engineering analysis but all situations are different and the user should consult a professional in all cases.
C26: Please watch a simple video on solar pumps at:
C27: http://www.youtube.com/watch?v=4gFbCdHle0w&list=PL89870B418A514D27&index=10&feature=plpp_video
C28: See more energy related videos at:
C29: http://www.youtube.com/playlist?list=PL89870B418A514D27
A50: http://www.youtube.com/watch?v=4gFbCdHle0w&list=PL89870B418A514D27&index=10&feature=plpp_video
A51: http://www.youtube.com/playlist?list=PL89870B418A514D27

Sheet Solar Resource
A1: Solar Resource: The average amount of sun light in your area | AC1: Invalid Latitude!! | AI1: Latitude | AJ1: Y/N | AK1: Order
A2: Step 1: Select your state (NM, AZ, CO, UT, NV, WY, MT) using the drop-down menu. | AI2: 31 | AJ2: =IF(OR($M$8="New Mexico",$M$8="Arizona"),1.018,0.018) -> 1.018 | AK2: =INDEX($AI$2:$AI$19,MATCH(LARGE($AJ$2:$AJ$19,1),$AJ$2:$AJ$19,0)) -> 31
A3: Next: Enter the "Latitude" of the location where you plan to put your solar well using the state's reference map below and the drop-down menu. Click on the "Time Period" green cell to get a menu for the part of year you will be grazing - choose "Summer" for ONLY summer watering, "Winter" or "All-Year" - see *NOTE1 below. The next green cell "Tracker or Tilt Angles" allows you to choose the angle at which the solar panels will be tilted - see *NOTE2. | I3: Latitude | K3: 34 | M3: Select your | AC3: New Mexico | AD3: Winter | AE3: Latitude | AF3: =IF(K4="Summer",4,3) -> 3 | AI3: 32 | AJ3: =IF(OR($M$8="New Mexico",$M$8="Arizona"),1.017,0.017) -> 1.017 | AK3: =INDEX($AI$2:$AI$19,MATCH(LARGE($AJ$2:$AJ$19,2),$AJ$2:$AJ$19,0)) -> 32
I4: Time Period* | K4: All Year | AC4: Arizona | AD4: Summer | AE4: 1-Axis Tracker | AF4: =IF(K4="Summer",6,5) -> 5 | AI4: 33 | AJ4: =IF(OR($M$8="New Mexico",$M$8="Arizona"),1.016,0.016) -> 1.016 | AK4: =INDEX($AI$2:$AI$19,MATCH(LARGE($AJ$2:$AJ$19,3),$AJ$2:$AJ$19,0)) -> 33
M5: State: | AC5: Colorado | AD5: All Year | AE5: +/- 15° | AF5: =IF(K4="Summer",2,1) -> 1 | AI5: 34 | AJ5: =IF(OR($M$8="New Mexico",$M$8="Arizona"),1.015,0.015) -> 1.015 | AK5: =INDEX($AI$2:$AI$19,MATCH(LARGE($AJ$2:$AJ$19,4),$AJ$2:$AJ$19,0)) -> 34
I6: Tracker or Tilt Angles | K6: +/- 15° | AC6: Utah | AI6: 35 | AJ6: =IF(OR($M$8="New Mexico",$M$8="Arizona",$M$8="Nevada"),1.014,0.014) -> 1.014 | AK6: =INDEX($AI$2:$AI$19,MATCH(LARGE($AJ$2:$AJ$19,5),$AJ$2:$AJ$19,0)) -> 35
AC7: Nevada | AI7: 36 | AJ7: =IF(OR($M$8="New Mexico",$M$8="Arizona",$M$8="Nevada"),1.013,0.013) -> 1.013 | AK7: =INDEX($AI$2:$AI$19,MATCH(LARGE($AJ$2:$AJ$19,6),$AJ$2:$AJ$19,0)) -> 36
I8: Insolation at given latitude | K8: =IFERROR(IF(M8="New Mexico",INDEX(AD26:AI31,MATCH(K3,AC26:AC31,0),AF8),IF(M8="Arizona",INDEX(AD62:AI68,MATCH(K3,AC62:AC68,0),AF8),IF(M8="Colorado",INDEX(AD91:AI95,MATCH(K3,AC91:AC95,0),AF8),IF(M8="Utah",INDEX(AD126:AI131,MATCH(K3,AC126:AC131,0),AF8),IF(M8="Nevada",INDEX(AD155:AI162,MATCH(K3,AC155:AC162,0),AF8),IF(M8="Wyoming",INDEX(AE189:AJ192,MATCH(K3,AD189:AD192,0),AF8),IF(M8="Montana",INDEX(AE221:AJ225,MATCH(K3,AD221:AD225,0),AF8)))))))),0) -> 5.53 | L8: kWh/day | M8: New Mexico | Q8: =IF(INDEX(AJ2:AJ19,MATCH(K3,AI2:AI19,0))<1,AC1,"") ->  | AC8: Wyoming | AD8: =IF(K4="Summer",1,0) -> 0 | AE8: =IF(K6="Latitude",3,IF(K6="1-Axis Tracker",5,0)) -> 0 | AF8: =IF(SUM(AD8:AE8)=0,1,IF(SUM(AD8:AE8)=1,2,SUM(AD8:AE8))) -> 1 | AI8: 37 | AJ8: =IF(OR($M$8="Utah",$M$8="Colorado",$M$8="Nevada"),1.012,0.012) -> 0.012 | AK8: =INDEX($AI$2:$AI$19,MATCH(LARGE($AJ$2:$AJ$19,7),$AJ$2:$AJ$19,0)) -> 37
A9: Step 2: Once Total Daily Insolation is calculated, move on to the next sheet titled Daily Water Requirement. | I9: Total Daily Insolation | K9: =$K$8 -> 5.53 | L9: kWh/day | AC9: Montana | AI9: 38 | AJ9: =IF(OR($M$8="Utah",$M$8="Colorado",$M$8="Nevada"),1.011,0.011) -> 0.011 | AK9: =INDEX($AI$2:$AI$19,MATCH(LARGE($AJ$2:$AJ$19,8),$AJ$2:$AJ$19,0)) -> 38
AI10: 39 | AJ10: =IF(OR($M$8="Utah",$M$8="Colorado",$M$8="Nevada"),1.01,0.01) -> 0.01 | AK10: =INDEX($AI$2:$AI$19,MATCH(LARGE($AJ$2:$AJ$19,9),$AJ$2:$AJ$19,0)) -> 39
A11: *NOTE1: Use the drop-down menu to choose Summer, Winter, or All Year. A "Winter" entry provides the most conservative solar numbers. | AI11: 40 | AJ11: =IF(OR($M$8="Utah",$M$8="Colorado",$M$8="Nevada"),1.009,0.009) -> 0.009 | AK11: =INDEX($AI$2:$AI$19,MATCH(LARGE($AJ$2:$AJ$19,10),$AJ$2:$AJ$19,0)) -> 40
A12: Choose Summer if you are only pumping during the summer months. Typically summer values are 20-35% different than winter values. | AD12: winter | AE12: =IF(K6="Latitude",3,IF(K6="1-Axis Tracker",5,1)) -> 1 | AF12: =IFERROR(IF(M8="New Mexico",INDEX(AD26:AI31,MATCH(K3,AC26:AC31,0),AE12),IF(M8="Arizona",INDEX(AD62:AI68,MATCH(K3,AC62:AC68,0),AE12),IF(M8="Colorado",INDEX(AD91:AI95,MATCH(K3,AC91:AC95,0),AE12),IF(M8="Utah",INDEX(AD126:AI131,MATCH(K3,AC126:AC131,0),AE12),IF(M8="Nevada",INDEX(AD155:AI162,MATCH(K3,AC155:AC162,0),AE12)))))),0) -> 5.53 | AI12: 41 | AJ12: =IF(OR($M$8="Utah",$M$8="Nevada",$M$8="Wyoming"),1.008,0.008) -> 0.008 | AK12: =INDEX($AI$2:$AI$19,MATCH(LARGE($AJ$2:$AJ$19,11),$AJ$2:$AJ$19,0)) -> 41
A13: *NOTE2: Enter "Latitude" if you plan to tilt the PV panels at a fixed angle equal to the latitude of your location. Enter "+/- 15°" if you plan to change tilt angles based on winter or summer seasons (Lat+15° for Winter and Lat-15° for Summer). Enter "1-Axis Tracker" if you plan to use a 1-axis tracker. See user manual for more discussion. | AD13: summer | AE13: =IF(K6="Latitude",4,IF(K6="1-Axis Tracker",6,2)) -> 2 | AF13: =IFERROR(IF(M8="New Mexico",INDEX(AD26:AI31,MATCH(K3,AC26:AC31,0),AE13),IF(M8="Arizona",INDEX(AD62:AI68,MATCH(K3,AC62:AC68,0),AE13),IF(M8="Colorado",INDEX(AD91:AI95,MATCH(K3,AC91:AC95,0),AE13),IF(M8="Utah",INDEX(AD126:AI131,MATCH(K3,AC126:AC131,0),AE13),IF(M8="Nevada",INDEX(AD155:AI162,MATCH(K3,AC155:AC162,0),AE13)))))),0) -> 6.55 | AI13: 42 | AJ13: =IF($M$8="Wyoming",1.007,0.007) -> 0.007 | AK13: =INDEX($AI$2:$AI$19,MATCH(LARGE($AJ$2:$AJ$19,12),$AJ$2:$AJ$19,0)) -> 42
AI14: 43 | AJ14: =IF($M$8="Wyoming",1.006,0.006) -> 0.006 | AK14: =INDEX($AI$2:$AI$19,MATCH(LARGE($AJ$2:$AJ$19,13),$AJ$2:$AJ$19,0)) -> 43
AI15: 44 | AJ15: =IF(OR($M$8="Wyoming",$M$8="Montana"),1.005,0.005) -> 0.005 | AK15: =INDEX($AI$2:$AI$19,MATCH(LARGE($AJ$2:$AJ$19,14),$AJ$2:$AJ$19,0)) -> 44
B16: NEW MEXICO | AI16: 45 | AJ16: =IF($M$8="Montana",1.004,0.004) -> 0.004 | AK16: =INDEX($AI$2:$AI$19,MATCH(LARGE($AJ$2:$AJ$19,15),$AJ$2:$AJ$19,0)) -> 45
AI17: 46 | AJ17: =IF($M$8="Montana",1.003,0.003) -> 0.003 | AK17: =INDEX($AI$2:$AI$19,MATCH(LARGE($AJ$2:$AJ$19,16),$AJ$2:$AJ$19,0)) -> 46
A18: 36 | B18: 36 | J18: 36 | L18: =IF(INDEX(AJ2:AJ19,MATCH(K3,AI2:AI19,0))<1,AC1,"") ->  | AI18: 47 | AJ18: =IF($M$8="Montana",1.002,0.002) -> 0.002 | AK18: =INDEX($AI$2:$AI$19,MATCH(LARGE($AJ$2:$AJ$19,17),$AJ$2:$AJ$19,0)) -> 47
AI19: 48 | AJ19: =IF($M$8="Montana",1.001,0.001) -> 0.001 | AK19: =INDEX($AI$2:$AI$19,MATCH(LARGE($AJ$2:$AJ$19,18),$AJ$2:$AJ$19,0)) -> 48
AI21: Useless | AJ21: =COUNTIF(AJ2:AJ19,"<1") -> 12
A22: 35 | B22: 35 | J22: 35
AD24: Adjusting tilt +/- 15 | AF24: Fixed at latitude | AH24: 1-Axis tracker
AC25: Latitude | AD25: Winter | AE25: Summer | AF25: Winter | AG25: Summer | AH25: Winter | AI25: Summer
AC26: 31 | AD26: 5.6 | AE26: 6.4 | AF26: 5.1 | AG26: 6.6 | AH26: 6.3 | AI26: 8.7
AC27: 32 | AD27: 5.58 | AE27: 6.45 | AF27: 5.08 | AG27: 6.65 | AH27: 6.25 | AI27: 8.78
AC28: 33 | AD28: 5.55 | AE28: 6.5 | AF28: 5.05 | AG28: 6.7 | AH28: 6.2 | AI28: 8.85
A29: 34 | B29: 34 | J29: 34 | AC29: 34 | AD29: 5.53 | AE29: 6.55 | AF29: 5.03 | AG29: 6.75 | AH29: 6.15 | AI29: 8.93
AC30: 35 | AD30: 5.5 | AE30: 6.6 | AF30: 5 | AG30: 6.8 | AH30: 6.1 | AI30: 9
AC31: 36 | AD31: 5.6 | AE31: 6.55 | AF31: 5.1 | AG31: 6.75 | AH31: 6.2 | AI31: 9.05
A34: 33 | B34: 33 | J34: 33
A40: 32 | B40: 32 | J40: 32
A44: 31 | B44: 31 | J44: 31
B49: ARIZONA
A51: 36 | B51: 36 | J51: 36 | L51: =IF(INDEX(AJ2:AJ19,MATCH(K3,AI2:AI19,0))<1,AC1,"") -> 
A56: 35 | B56: 35 | J56: 35
A60: 34 | B60: 34 | J60: 34 | AD60: Adjusting tilt +/- 15 | AF60: Fixed at latitude | AH60: 1-Axis tracker
AC61: Latitude | AD61: Winter | AE61: Summer | AF61: Winter | AG61: Summer | AH61: Winter | AI61: Summer
AC62: 31 | AD62: 5.9 | AE62: 6.4 | AF62: 5.3 | AG62: 6.6 | AH62: 6.6 | AI62: 8.9
AC63: 32 | AD63: 5.6 | AE63: 6.6 | AF63: 5.1 | AG63: 6.8 | AH63: 6.2 | AI63: 9.1
AC64: 33 | AD64: 5.3 | AE64: 6.8 | AF64: 4.9 | AG64: 7 | AH64: 5.8 | AI64: 9.3
AC65: 34 | AD65: 5.33 | AE65: 6.9 | AF65: 4.9 | AG65: 7.07 | AH65: 5.83 | AI65: 9.47
A66: 33 | B66: 33 | J66: 33 | AC66: 35 | AD66: 5.37 | AE66: 7 | AF66: 4.9 | AG66: 7.13 | AH66: 5.87 | AI66: 9.63
AC67: 36 | AD67: 5.4 | AE67: 7.1 | AF67: 4.9 | AG67: 7.2 | AH67: 5.9 | AI67: 9.8
AC68: 37 | AD68: 5.13 | AE68: 6.92 | AF68: 4.67 | AG68: 7.02 | AH68: 5.6 | AI68: 9.57
A72: 32 | B72: 32 | J72: 32
A77: 31 | B77: 31 | J77: 31
B82: COLORADO
A84: 40 | B84: 40 | J84: 40 | L84: =IF(INDEX(AJ2:AJ19,MATCH(K3,AI2:AI19,0))<1,AC1,"") -> 
AD89: Adjusting tilt +/- 15 | AF89: Fixed at latitude | AH89: 1-Axis tracker
AC90: Latitude | AD90: Winter | AE90: Summer | AF90: Winter | AG90: Summer | AH90: Winter | AI90: Summer
AC91: 37 | AD91: 5.7 | AE91: 6.5 | AF91: 5.2 | AG91: 6.7 | AH91: 6.3 | AI91: 9.1
AC92: 38 | AD92: 5.3 | AE92: 6.3 | AF92: 4.87 | AG92: 6.47 | AH92: 5.83 | AI92: 8.7
A93: 39 | B93: 39 | J93: 39 | AC93: 39 | AD93: 4.9 | AE93: 6.1 | AF93: 4.53 | AG93: 6.23 | AH93: 5.37 | AI93: 8.3
AC94: 40 | AD94: 4.5 | AE94: 5.9 | AF94: 4.2 | AG94: 6 | AH94: 4.9 | AI94: 7.9
AC95: 41 | AD95: 4.43 | AE95: 5.97 | AF95: 4.13 | AG95: 6.07 | AH95: 4.8 | AI95: 8.03
A100: 38 | B100: 38 | J100: 38
A106: 37 | B106: 37 | J106: 37
B115: UTAH
A117: 41 | B117: 41 | J117: 41 | L117: =IF(INDEX(AJ2:AJ19,MATCH(K3,AI2:AI19,0))<1,AC1,"") -> 
A123: 40 | B123: 40 | J123: 40
AD124: Adjusting tilt +/- 15 | AF124: Fixed at latitude | AH124: 1-Axis tracker
AC125: Latitude | AD125: Winter | AE125: Summer | AF125: Winter | AG125: Summer | AH125: Winter | AI125: Summer
AC126: 37 | AD126: 5.13 | AE126: 6.92 | AF126: 4.67 | AG126: 7.02 | AH126: 5.6 | AI126: 9.57
AC127: 38 | AD127: 4.87 | AE127: 6.73 | AF127: 4.43 | AG127: 6.83 | AH127: 5.3 | AI127: 9.33
A128: 39 | B128: 39 | J128: 39 | AC128: 39 | AD128: 4.6 | AE128: 6.55 | AF128: 4.2 | AG128: 6.65 | AH128: 5 | AI128: 9.1
AC129: 40 | AD129: 4.34 | AE129: 6.46 | AF129: 3.98 | AG129: 6.58 | AH129: 4.69 | AI129: 8.96
AC130: 41 | AD130: 4.08 | AE130: 6.38 | AF130: 3.75 | AG130: 6.5 | AH130: 4.38 | AI130: 8.83
AC131: 42 | AD131: 3.81 | AE131: 6.29 | AF131: 3.53 | AG131: 6.43 | AH131: 4.06 | AI131: 8.69
A134: 38 | B134: 38 | J134: 38
A140: 37 | B140: 37 | J140: 37
B148: NEVADA
A150: 41 | B150: 41 | J150: 41 | L150: =IF(INDEX(AJ2:AJ19,MATCH(K3,AI2:AI19,0))<1,AC1,"") -> 
AD153: Adjusting tilt +/- 15 | AF153: Fixed at latitude | AH153: 1-Axis tracker
A154: 40 | B154: 40 | J154: 40 | AC154: Latitude | AD154: Winter | AE154: Summer | AF154: Winter | AG154: Summer | AH154: Winter | AI154: Summer
AC155: 35 | AD155: 5.63 | AE155: 7.27 | AF155: 5.1 | AG155: 7.37 | AH155: 6.17 | AI155: 10
AC156: 36 | AD156: 5.4 | AE156: 7.1 | AF156: 4.9 | AG156: 7.2 | AH156: 5.9 | AI156: 9.8
AC157: 37 | AD157: 5.17 | AE157: 6.93 | AF157: 4.7 | AG157: 7.03 | AH157: 5.63 | AI157: 9.6
A158: 39 | B158: 39 | J158: 39 | AC158: 38 | AD158: 4.93 | AE158: 6.77 | AF158: 4.5 | AG158: 6.87 | AH158: 5.37 | AI158: 9.4
AC159: 39 | AD159: 4.7 | AE159: 6.6 | AF159: 4.3 | AG159: 6.7 | AH159: 5.1 | AI159: 9.2
AC160: 40 | AD160: 4.24 | AE160: 6.53 | AF160: 3.89 | AG160: 6.64 | AH160: 4.58 | AI160: 9.09
AC161: 41 | AD161: 3.78 | AE161: 6.45 | AF161: 3.48 | AG161: 6.58 | AH161: 4.05 | AI161: 8.98
A162: 38 | B162: 38 | J162: 38 | AC162: 42 | AD162: 3.31 | AE162: 6.38 | AF162: 3.06 | AG162: 6.51 | AH162: 3.53 | AI162: 8.86
A166: 37 | B166: 37 | J166: 37
A171: 36 | B171: 36 | J171: 36
A176: 35 | B176: 35 | J176: 35
B181: WYOMING
A183: 44 | B183: 44 | J183: 44 | L183: =IF(INDEX(AJ2:AJ19,MATCH(K3,AI2:AI19,0))<1,AC1,"") -> 
AE187: Adjusting tilt +/- 15 | AG187: Fixed at latitude | AI187: 1-Axis tracker
AD188: Latitude | AE188: Winter | AF188: Summer | AG188: Winter | AH188: Summer | AI188: Winter | AJ188: Summer
AD189: 41 | AE189: 4.05 | AF189: 6.1 | AG189: 3.78 | AH189: 6.2 | AI189: 4.35 | AJ189: 8.28
A190: 43 | B190: 43 | J190: 43 | AD190: 42 | AE190: 4.3 | AF190: 6.1 | AG190: 4 | AH190: 6.2 | AI190: 4.6 | AJ190: 8.3
AD191: 43 | AE191: 4.05 | AF191: 5.95 | AG191: 3.77 | AH191: 5.98 | AI191: 4.33 | AJ191: 8.07
AD192: 44 | AE192: 3.8 | AF192: 5.8 | AG192: 3.53 | AH192: 5.85 | AI192: 4.07 | AJ192: 7.83
A197: 42 | B197: 42 | J197: 42
A204: 41 | B204: 41 | J204: 41
B214: MONTANA
A216: 48 | B216: 48 | J216: 48 | L216: =IF(INDEX(AJ2:AJ19,MATCH(K3,AI2:AI19,0))<1,AC1,"") -> 
AE219: Adjusting tilt +/- 15 | AG219: Fixed at latitude | AI219: 1-Axis tracker
AD220: Latitude | AE220: Winter | AF220: Summer | AG220: Winter | AH220: Summer | AI220: Winter | AJ220: Summer
AD221: 44 | AE221: 3.8 | AF221: 5.8 | AG221: 3.53 | AH221: 5.85 | AI221: 4.07 | AJ221: 7.83
A222: 47 | B222: 47 | J222: 47 | AD222: 45 | AE222: 3.55 | AF222: 5.65 | AG222: 3.3 | AH222: 5.71 | AI222: 3.8 | AJ222: 7.6
AD223: 46 | AE223: 3.3 | AF223: 5.5 | AG223: 3.07 | AH223: 5.57 | AI223: 3.53 | AJ223: 7.37
AD224: 47 | AE224: 3.05 | AF224: 5.35 | AG224: 2.83 | AH224: 5.44 | AI224: 3.27 | AJ224: 7.13
AD225: 48 | AE225: 2.8 | AF225: 5.2 | AG225: 2.6 | AH225: 5.3 | AI225: 3 | AJ225: 6.9
A227: 46 | B227: 46 | J227: 46
A233: 45 | B233: 45 | J233: 45
A238: 44 | B238: 44 | J238: 44

Sheet Daily Water Requirement
A1: Daily Water Requirement and Storage for | K1: =H17 -> All Year | L1: Watering
A2: Step 3: Enter the number of each animal that needs water in the green cells to the right under the heading Quantity. If you have any other daily water requirements, you can enter that value in the Other Water Requirements cell. You can change the animal water requirement values in the green cells below. Use the values in the grey cells below as a guide. | J2: Water Requirements
J3: Animal | M3: Quantity | N3: Gallons/Day
J4: Nursing Cows | M4: 0 | N4: =$M$4*E18 -> 0
J5: Bred Dry Cows & Heifers | M5: 0 | N5: =$M$5*E19 -> 0
A6: NOTE: The orange colored cells calculate the daily water requirements for the number of each animal entered (gallons per day). The highlighted cells in yellow at the bottom gives your Total Daily Water Requirement. | J6: Bulls | M6: 5 | N6: =$M$6*E20 -> 100
J7: Growing Cattle
K8: 400 lbs | M8: 4 | N8: =$M$8*E22 -> 40
A9: Step 4: In PV pumping systems it is important to have water storage for times of low light conditions, nights, cloudy days, etc. Enter a value for the amount of storage you need in days. This is used to find the size of a storage tank you will need. For NM, a standard value is three (3) days. | K9: 600 lbs | M9: 5 | N9: =$M$9*E23 -> 65
K10: 800 lbs | M10: 5 | N10: =$M$10*E24 -> 75
J11: Finishing Cattle
A12: Step 5: After getting the Total Daily Water Requirement, move on to the next sheet titled Total Dynamic Head by clicking that sheet's tab on the bottom of this page. | K12: 400 lbs | M12: 2 | N12: =$M$12*E26 -> 34
K13: 600 lbs | M13: 5 | N13: =$M$13*E27 -> 100
A14: The following is typical gallons/day water requirement (grey cells) for a single animal based upon your seasonal choice. The user may change these values (in green) but it is not recommended. | K14: 800 lbs | M14: 6 | N14: =$M$14*E28 -> 132
K15: 1200 lbs | M15: 2 | N15: =$M$15*E29 -> 50
A16: Typical water requirement for this region | H16: Gallons/day | J16: Horses | M16: 6 | N16: =$M$16*E30 -> 90
H17: ='Solar Resource'!K4 -> All Year | I17: Typical | J17: Sheeps and Goats | M17: 8 | N17: =$M$17*E31 -> 32
A18: Nursing Cows | E18: =H18 -> 20 | F18: gallons/day | H18: =IF($H$17="Summer",20,IF($H$17="Winter",15,20)) -> 20 | I18: 15-20 | J18: Hogs | M18: 3 | N18: =$M$18*E32 -> 15
A19: Bred Dry Cows and Heifers | E19: =H19 -> 18 | H19: =IF($H$17="Summer",18,IF($H$17="Winter",13,18)) -> 18 | J19: Human Beings | M19: 20 | N19: =$M$19*E33 -> 2000
A20: Bulls | E20: =H20 -> 20 | H20: =IF($H$17="Summer",20,IF($H$17="Winter",16,20)) -> 20 | J20: Chickens | M20: 5 | N20: =$M$20*E34 -> 0.5
A21: Growing Cattle | I21: 7-15 | J21: Turkeys | M21: 5 | N21: =$M$21*E35 -> 0.75
B22: 400 lbs | E22: =H22 -> 10 | H22: =IF($H$17="Summer",10,IF($H$17="Winter",7,10)) -> 10 | J22: Elk | M22: 0 | N22: =$M$22*E36 -> 0
B23: 600 lbs | E23: =H23 -> 13 | H23: =IF($H$17="Summer",13,IF($H$17="Winter",9,13)) -> 13 | J23: Deer | M23: 0 | N23: =$M$23*E37 -> 0
B24: 800 lbs | E24: =H24 -> 15 | H24: =IF($H$17="Summer",15,IF($H$17="Winter",11,15)) -> 15 | J24: Other Water Requirements | M24: 0 | N24: =M24 -> 0
A25: Finishing Cattle | I25: 15-25 | J25: Daily Water Requirement | N25: =SUM(N3:N24) -> 2734.25 | O25: gal/day
B26: 400 lbs | E26: =H26 -> 17 | H26: =IF($H$17="Summer",17,IF($H$17="Winter",15,17)) -> 17 | J26: Multiplier** (additional %) | M26: 0 | N26: %
B27: 600 lbs | E27: 20 | H27: =IF($H$17="Summer",20,IF($H$17="Winter",15,20)) -> 20
B28: 800 lbs | E28: 22 | H28: =IF($H$17="Summer",22,IF($H$17="Winter",18,22)) -> 22 | J28: Daily Water Requirement (with multiplier) | N28: =N25+N25*(M26/100) -> 2734.25 | O28: gal/day
B29: 1200 lbs | E29: 25 | H29: =IF($H$17="Summer",25,IF($H$17="Winter",20,25)) -> 25 | J29: Necessary flow-rate (Q) in gpm | L29: =ROUNDUP('Daily Water Requirement'!$N$28/('Solar Resource'!$K$9*60),2) -> 8.25 | M29: gpm | N29: =$N$28*3.7854 -> 10350.22995 | O29: L/day
A30: Horses | E30: 15 | H30: =IF($H$17="Summer",15,IF($H$17="Winter",10,15)) -> 15 | I30: 8-15 | J30: Days of Storage | M30: 3 | N30: Days
A31: Sheeps and Goats | E31: 4 | H31: =IF($H$17="Summer",4,IF($H$17="Winter",2,4)) -> 4 | I31: 1-4 | J31: Storage Tank Size (recommended) | N31: =ROUNDUP(N28*M30,0) -> 8203 | O31: Gallons
A32: Hogs | E32: 5 | H32: =IF($H$17="Summer",5,IF($H$17="Winter",3,5)) -> 5 | I32: 3-5
A33: Human Beings | E33: 100 | H33: =IF($H$17="Summer",100,IF($H$17="Winter",75,100)) -> 100 | I33: 1-100* | J33: **Multiplier is used to add a percentage of the daily requirement for evaporation and for refilling the storage tank after draw-down days. Valid values are 0-20%. Use 0 if no margin is needed.
A34: Chickens - per bird | E34: 0.1 | H34: =IF($H$17="Summer",0.1,IF($H$17="Winter",0.08,0.1)) -> 0.1 | I34: 0.08-0.1
A35: Turkeys - per birds | E35: 0.15 | H35: =IF($H$17="Summer",0.15,IF($H$17="Winter",0.1,0.15)) -> 0.15 | I35: 0.1 - 0.15
A36: Elk | E36: 7 | H36: =IF($H$17="Summer",7,IF($H$17="Winter",4,7)) -> 7 | I36: 4-7 | J36: *NOTE: Humans need about a gallon of drinking water per day but may use up to 50-100 gallons per day for cooking, cleaning, showers, etc.
A37: Deer | E37: 3 | H37: =IF($H$17="Summer",3,IF($H$17="Winter",2,3)) -> 3 | I37: 2-3

Sheet Total Dynamic Head
A1: Total Dynamic Head (TDH)
L2: Choices for | M2: Max. | N2: Pipe
A3: Step 6: Using the "example" diagram below, enter your values for well water level and the discharge elevation of your storage tank as well as other information in the green cells to the right. Note the corresponding color coding of diagram parts and their associated table entries to the right. | I3: Water Level | J3: 50 | K3: ft | L3: Pipe Sizes (in.) | M3: gpm | N3: Choice
I4: Pump Level | J4: 55 | K4: ft | L4: 0.5 | M4: 7 | N4: PVC | R4: =IF(OR(L14="0.5 in"),1.006,0.006) -> 0.006 | S4: =INDEX(L4:L9,MATCH(LARGE(R4:R9,1),R4:R9,0)) -> 1
I5: Discharge Elevation | J5: 15 | K5: ft | L5: 0.75 | M5: 11 | N5: Poly | R5: =IF(OR(L14="0.5 in",L14="0.75 in"),1.005,0.005) -> 0.005 | S5: =INDEX(L4:L9,MATCH(LARGE(R4:R9,2),R4:R9,0)) -> 1.5
I6: Distance from well to storage tank | J6: 80 | K6: ft | L6: 1 | M6: 16 | N6: Metal | R6: =IF(OR(L14="0.5 in",L14="0.75 in",L14="1 in"),1.004,0.004) -> 1.004 | S6: =INDEX(L4:L9,MATCH(LARGE(R4:R9,3),R4:R9,0)) -> 2
L7: 1.5 | M7: 35 | R7: =IF(OR(L14="0.5 in",L14="0.75 in",L14="1 in",L14="1.5 in"),1.003,0.003) -> 1.003 | S7: =INDEX(L4:L9,MATCH(LARGE(R4:R9,4),R4:R9,0)) -> 3
I8: Total Vertical Lift (Static Head) | J8: =SUM(J4,J5) -> 70 | K8: ft | L8: 2 | M8: 55 | R8: =IF(OR(L14="0.5 in",L14="0.75 in",L14="1 in",L14="1.5 in",L14="2 in"),1.002,0.002) -> 1.002 | S8: =INDEX(L4:L9,MATCH(LARGE(R4:R9,5),R4:R9,0)) -> 0.5
L9: 3 | M9: 140 | R9: =IF(OR(L14="0.5 in",L14="0.75 in",L14="1 in",L14="1.5 in",L14="2 in",L14="3 in"),1.001,0.001) -> 1.001 | S9: =INDEX(L4:L9,MATCH(LARGE(R4:R9,6),R4:R9,0)) -> 0.75
I10: Total Length of Pipe | J10: =$J$6+$J$5+$J$4 -> 150 | K10: ft | L10: =IF(INDEX(R4:R9,MATCH(J12,L4:L9,0))<1,A40,"") ->  | R10: =COUNTIF(R4:R9,"<1") -> 2
I12: Nominal Pipe Diameter (inches) | J12: 1 | K12: in | L12: Recommended | M12: =IF(J3>=J4,A41,"") -> 
I13: Type of Pipe | J13: PVC | K13: =IF(J13="PVC", 150, (IF(J13="Poly", 140,135))) -> 150 | L13: Pipe Size
I14: Friction Losses Due to Pipe | J14: =(10.472/(K13^1.852))*((('Pump Selection'!$T$2^1.852)/('Total Dynamic Head'!$J$12^4.871))*'Total Dynamic Head'!$J$10) -> 7.38129407 | K14: ft | L14: =IF('Pump Selection'!$T$2<=1.5,"0.5 in",IF('Pump Selection'!$T$2<=4.8,"0.75 in",IF('Pump Selection'!$T$2<=14,"1 in",IF('Pump Selection'!$T$2<=35,"1.5 in",IF('Pump Selection'!$T$2<=55,"2 in","3 in"))))) -> 1 in
I16: Fittings | J16: Quantity | L16: Equivalent Length
I18: Globe Valve, Fully Open | J18: 1 | L18: =($J$12*$J$18*275)/12 -> 22.91666667
I19: Gate Valve, Fully Open | J19: 1 | L19: =($J$12*$J$19*9)/12 -> 0.75
I20: Gate Valve, 3/4 Open | J20: 0 | L20: =($J$12*$J$20*35)/12 -> 0
I21: Gate Valve, 1/2 Open | J21: 0 | L21: =($J$12*$J$21*160)/12 -> 0
I22: Butterfly Valve | J22: 0 | L22: =($J$12*$J$22*120)/12 -> 0
I23: Swing Check Valve, Fully Open | J23: 1 | L23: =($J$12*$J$23*135)/12 -> 11.25
I24: In-Line Ball Check Valve, Fully Open | J24: 0 | L24: =($J$12*$J$24*150)/12 -> 0
I25: 90 Degree Standard Elbow | J25: 1 | L25: =($J$12*$J$25*30)/12 -> 2.5
E26: =IF('Total Dynamic Head'!$D$34>1500,"see note below","") ->  | I26: 45 Degree Standard Elbow | J26: 0 | L26: =($J$12*$J$26*16)/12 -> 0
I27: 90 Degree Street Elbow | J27: 0 | L27: =($J$12*$J$27*50)/12 -> 0
A28: Step 7: After completing this sheet and finding the value for the Total Dynamic Head of your system you can move on to the next sheet titled Pump Selection. | I28: Standard Tee, Flow Through Run | J28: 0 | L28: =($J$12*$J$28*16)/12 -> 0
I29: Standard Tee, Flow Through Branch | J29: 0 | L29: =($J$12*$J$29*60)/12 -> 0
A31: *In the above example, the "Water Level " is 145', the pump is 5' under the water level, discharge "Elevation" is 10', horizontal pipe run is 80', there is one Globe Valve, one Swing Check Value, and three 90 degree Elbows. | I31: Friction Loss Due to Fittings | L31: =SUM(L18:L29) -> 37.41666667 | M31: ft
L33: =$L$34*0.3048 -> 35.052 | M33: m
A34: Hydraulic Workload (m4)** | D34: =$L$33*('Daily Water Requirement'!$N$29/1000) -> 362.7962602 | I34: Total Dynamic Head (TDH) | L34: =ROUNDUP($J$8+$J$14+$L$31,0) -> 115 | M34: ft
A35: **NOTE: If the above Hydraulic Workload value is greater than 1500, then solar may not be a good choice - see manual for discussion. | L35: =ROUND(L34*0.433,0) -> 50 | M35: psi
A40: The pipe size selected does not match the requirements of the system.
A41: The pump is not under water at this level. Correct the Water level and Pump level entries.

Sheet Pump Selection
A1: Pump Selection | U1: Go back to start! | AG1: Go back to start!
A2: Step 8: In this step you will select a solar pump for the calculated Q and TDH values shown in the yellow cells to the right. Every pump has certain limits of Q and TDH which are defined by the manufacturer - often in what's called a pump curve. You must select a pump that falls within these limits, try to maximize its efficiency, and determine its operating voltage and the PV power needed to run it. Using an example manufacturer (SUN PUMPS) and a small set of 1HP (or less) pumps, the system will recommend the best pump (from the example pumps curve data). The user may use this same technique to select another pump, different type or manufacturer - see user manual for more discussion. | P2: Flow Rate (Q) | T2: =ROUNDUP('Daily Water Requirement'!$N$28/('Solar Resource'!$K$9*60),1) -> 8.3 | U2: gpm
DB3: Sorted
P4: Total Dynamic Head (TDH) | T4: ='Total Dynamic Head'!$L$34 -> 115 | U4: ft | CU4: Pump | CV4: W | CW4: V | CX4: I | CZ4: SDS-T-128 | DA4: =IF(AND($CI$10=0,CI9=0),0.00013,1.00013) -> 0.00013 | DB4: =INDEX(CZ4:CZ18,MATCH(LARGE($DA$4:$DA$18,1),$DA$4:$DA$18,0)) -> SCS-18-160 | DD4: =IF(INDEX(DA4:DA18,MATCH(T16,CZ4:CZ18,0))=0,A184,"") -> 
T5: =T4*0.3048 -> 35.052 | U5: m | CZ5: SCS-8-90 | DA5: =IF(AND($CI$34=0,$CI$46=0),0.00009,1.00009) -> 9e-05 | DB5: =INDEX(CZ4:CZ18,MATCH(LARGE($DA$4:$DA$18,2),$DA$4:$DA$18,0)) -> SCS-10-230
CZ6: SCS-6-185 | DA6: =IF(AND($CI$58=0,$CI$70=0,$CI$82=0,$CI$94=0,$CI$105=0),0.00006,1.00006) -> 6e-05 | DB6: =INDEX(CZ4:CZ18,MATCH(LARGE($DA$4:$DA$18,3),$DA$4:$DA$18,0)) -> SCS-30-115 | DC6: SDS-T-128
P7: Preferred SCS Pump Choice | T7: =U31 -> 18-160 | V7: =IF(AND(CI108=0,CI107=0,CI106=0,CI105=0,CI104=0,CI99=0,CI98=0,CI97=0,CI96=0,CI95=0,CI94=0,CI93=0,CI92=0),A182,"") ->  | CS7: SCS | CT7: At 30 V | CU7: =CQ38 -> None | CV7: =IF(CU7<>"None",(SMALL(CK30:CK37,COUNTIF(CK30:CK37,0)+1)),0) -> 0 | CW7: =IF(CU7<>"None",30,0) -> 0 | CX7: =IF(CU7<>"None",CV7/CW7,0) -> 0 | CZ7: SCS-4-325 | DA7: =IF(AND($CI$57=0,$CI$69=0,$CI$81=0,$CI$93=0,$CI$104=0),0.00007,1.00007) -> 7e-05 | DB7: =INDEX(CZ4:CZ18,MATCH(LARGE($DA$4:$DA$18,4),$DA$4:$DA$18,0)) -> SDS-Q-128
A8: NOTE: Other pumps (and manufacturers) are available which may meet your pumping requirements. However, the process for determining flow-rate (Q) and TDH is the same while a different pump curve would be used to select a pump, PV wattage, and operating voltage. See user manual for more discussion. | P8: and its Motor Voltage | T8: =IF(U31="None",0,Y31) -> 90 | U8: V | CT8: At 45 V | CU8: =CQ51 -> None | CV8: =IF(CU8<>"None",SMALL(CK42:CK50,COUNTIF(CK42:CK50,0)+1),0) -> 0 | CW8: =IF(CU8<>"None",45,0) -> 0 | CX8: 0 | CZ8: SCS-3-425 | DA8: =IF(AND($CI$68=0,$CI$92=0,$CI$80=0),0.00002,1.00002) -> 2e-05 | DB8: =INDEX(CZ4:CZ18,MATCH(LARGE($DA$4:$DA$18,5),$DA$4:$DA$18,0)) -> SDS-Q-135
P9: Recommended PV Panel Wattage | T9: =IFERROR(M17,0) -> 477.9693012 | U9: W | CT9: At 60 V | CU9: =CQ64 -> None | CV9: =IF(CU9<>"None",SMALL(CK55:CK63,COUNTIF(CK55:CK63,0)+1),0) -> 0 | CW9: =IF(CU9<>"None",60,0) -> 0 | CX9: 0 | CZ9: SCS-3-200 | DA9: =IF(AND($CI$31=0,$CI$43=0),0.0001,1.0001) -> 0.0001 | DB9: =INDEX(CZ4:CZ18,MATCH(LARGE($DA$4:$DA$18,6),$DA$4:$DA$18,0)) -> SDS-T-128
P10: =IF($T$7="None","No SCS series fits these parameters - retry","") ->  | CT10: At 75 V | CU10: =CQ76 -> None | CV10: =IF(CU10<>"None",SMALL(CK68:CK75,COUNTIF(CK68:CK75,0)+1),0) -> 0 | CW10: =IF(CU10<>"None",75,0) -> 0 | CX10: 0 | CZ10: SCS-30-115 | DA10: =IF(AND($CI$63=0,$CI$75=0,$CI$87=0,$CI$99=0,$CI$108=0),0.00001,1.00001) -> 1.00001 | DB10: =INDEX(CZ4:CZ18,MATCH(LARGE($DA$4:$DA$18,7),$DA$4:$DA$18,0)) -> SCS-18-45
CT11: At 90 V | CU11: =CQ88 -> 18-160 | CV11: =IF(CU11<>"None",SMALL(CK80:CK87,COUNTIF(CK80:CK87,0)+1),0) -> 590 | CW11: =IF(CU11<>"None",90,0) -> 90 | CX11: 6.555555556 | CZ11: SCS-18-160 | DA11: =IF(AND($CI$50=0,$CI$62=0,$CI$74=0,$CI$86=0,$CI$98=0,$CI$107=0),0.00008,1.00008) -> 1.00008 | DB11: =INDEX(CZ4:CZ18,MATCH(LARGE($DA$4:$DA$18,8),$DA$4:$DA$18,0)) -> SCS-12-95
A12: Step 9: Once you have selected a Pump, its operating Motor Voltage, Wattage, and the "average PV efficiency", enter the required information in the green cells and move to the Array Sizing sheet. | CT12: At 105 V | CU12: =CQ100 -> 18-160 | CV12: =IF(CU12<>"None",(SMALL(CK92:CK99,COUNTIF(CK92:CK99,0)+1)),0) -> 848 | CW12: =IF(CU12<>"None",105,0) -> 105 | CX12: 8.076190476 | CZ12: SCS-14-160 | DA12: =IF(AND($CI$61=0,$CI$85=0,$CI$97=0,$CI$73=0),0.00003,1.00003) -> 3e-05 | DB12: =INDEX(CZ4:CZ18,MATCH(LARGE($DA$4:$DA$18,9),$DA$4:$DA$18,0)) -> SCS-3-200
CT13: At 120 V | CU13: =CQ109 -> 18-160 | CV13: =IF(CU13<>"None",(SMALL(CK104:CK108,COUNTIF(CK104:CK108,0)+1)),0) -> 1146 | CW13: =IF(CU13<>"None",120,0) -> 120 | CX13: 9.55 | CZ13: SCS-12-95 | DA13: =IF(AND($CI$35=0,$CI$47=0,$CI$56=0),0.00011,1.00011) -> 0.00011 | DB13: =INDEX(CZ4:CZ18,MATCH(LARGE($DA$4:$DA$18,10),$DA$4:$DA$18,0)) -> SCS-8-90
E14: User | CV14: =SMALL(CV5:CV13,COUNTIF(CV5:CV13,0)+1) -> 590 | CZ14: SCS-11-210 | DA14: =IF(AND($CI$60=0,$CI$72=0,$CI$84=0,$CI$96=0,$CI$106=0),0.00004,1.00004) -> 4e-05 | DB14: =INDEX(CZ4:CZ18,MATCH(LARGE($DA$4:$DA$18,11),$DA$4:$DA$18,0)) -> SCS-4-325
A15: Average Pump Efficiency | E15: Entries | G15: Typical | I15: Taking into account avg. Pump & PV efficiencies: | CT15: SCS | CU15: =IF(AND(CP38=0,CP51=0,CP64=0,CP76=0,CP88=0,CP100=0,CP109=0),"None",INDEX(CU7:CU13,MATCH((SMALL(CV7:CV13,COUNTIF(CV7:CV13,0)+1)),CV7:CV13,0))) -> 18-160 | CV15: =IF(CU15="None",0,SMALL(CV7:CV13,COUNTIF(CV7:CV13,0)+1)) -> 590 | CW15: =IF(CU15="None",0,INDEX(CW7:CW13,MATCH((SMALL(CV7:CV13,COUNTIF(CV7:CV13,0)+1)),CV7:CV13,0))) -> 90 | CX15: =IF(CU15="None",0,INDEX(CX7:CX13,MATCH((SMALL(CV7:CV13,COUNTIF(CV7:CV13,0)+1)),CV7:CV13,0))) -> 6.555555556 | CZ15: SCS-10-230 | DA15: =IF(AND($CI$59=0,$CI$71=0,$CI$83=0,$CI$95=0),0.00005,1.00005) -> 1.00005 | DB15: =INDEX(CZ4:CZ18,MATCH(LARGE($DA$4:$DA$18,12),$DA$4:$DA$18,0)) -> SCS-6-185
A16: SCS Submersible Centrifugal | E16: =IF(E17>=0.1,E17,0.1) -> 0.44 | G16: 0.28 | I16: To meet Q and TDH, a SCS pump requires input power from: | P16: User Pump Choice | T16: SCS-10-230 | V16: Go to the recommended pump's chart | CZ16: SCS-18-45 | DA16: =IF(AND($CI$37=0,$CI$49=0),0.00012,1.00012) -> 0.00012 | DB16: =INDEX(CZ4:CZ18,MATCH(LARGE($DA$4:$DA$18,13),$DA$4:$DA$18,0)) -> SCS-11-210
A17: Real Pump Efficiency | E17: =IF(E18>=0.1,E18,0.1) -> 0.44 | J17: =IFERROR(ROUNDUP((($T$2*$T$4/3960)/E16*746),0),0) -> 409 | K17: W | L17: to | M17: =IFERROR((('Daily Water Requirement'!$N$29*$T$5/367)/$E$16/$E$19)/'Solar Resource'!K9,0) -> 477.9693012 | N17: W | P17: Pump Motor Voltage | T17: 75 | U17: V | CT17: =IF(T16="SCS-3-200","3-200",IF(T16="SCS-8-90","8-90",IF(T16="SCS-12-95","12-95",IF(T16="SCS-18-45","18-45",IF(T16="SCS-4-325","4-325",IF(T16="SCS-10-230","10-230",IF(T16="SCS-18-160","18-160",IF(T16="SCS-30-115","30-115","Error")))))))) -> 10-230 | CU17: =MATCH(CT17,CU7:CU13,0) ->  | CV17: =INDEX(CV7:CV13,CU17) ->  | CZ17: SDS-Q-135 | DA17: =IF(AND($CI$9=0,CI10=0),0.00014,1.00014) -> 0.00014 | DB17: =INDEX(CZ4:CZ18,MATCH(LARGE($DA$4:$DA$18,14),$DA$4:$DA$18,0)) -> SCS-14-160
E18: =IF(T7="3-200",INDEX(AL26:AL48,MATCH(CV15,AK26:AK48,0)),IF(T7="8-90",INDEX(AR26:AR50,MATCH(CV15,AQ26:AQ50,0)),IF(T7="12-95",INDEX(AX26:AX55,MATCH(CV15,AW26:AW55,0)),IF(T7="18-45",INDEX(BD26:BD38,MATCH(CV15,BC26:BC38,0)),IF(T7="4-325",INDEX(AL59:AL122,MATCH(CV15,AK59:AK122,0)),IF(T7="10-230",INDEX(AR59:AR105,MATCH(CV15,AQ59:AQ105,0)),IF(T7="18-160",INDEX(AX59:AX104,MATCH(CV15,AW59:AW104,0)),IF(T7="30-115",INDEX(BD59:BD118,MATCH(CV15,BC59:BC118,0)),"Error")))))))) -> 0.44 | P18: Pump Motor Wattage | T18: 520 | U18: W | V18: Go to the recommended pump's data table | CZ18: SDS-Q-128 | DA18: =IF(AND($CI$7=0,$CI$18=0),0.00015,1.00015) -> 0.00015 | DB18: =INDEX(CZ4:CZ18,MATCH(LARGE($DA$4:$DA$18,15),$DA$4:$DA$18,0)) -> SCS-3-425
A19: Average PV Efficiency | E19: =G19 -> 0.85 | G19: 0.85 | I19: =IFERROR(IF(INDEX(DA4:DA18,MATCH(T16,CZ4:CZ18,0))<1,A184,""),A184) ->  | CU19: Eff | CV19: =IF(T16="SCS-3-200",INDEX(AL26:AL48,MATCH(CV17,AK26:AK48,0)),IF(T16="SCS-8-90",INDEX(AR26:AR50,MATCH(CV17,AQ26:AQ50,0)),IF(T16="SCS-12-95",INDEX(AX26:AX55,MATCH(CV17,AW26:AW55,0)),IF(T16="SCS-18-45",INDEX(BD26:BD38,MATCH(CV17,BC26:BC38,0)),IF(T16="SCS-4-325",INDEX(AL59:AL122,MATCH(CV17,AK59:AK122,0)),IF(T16="SCS-10-230",INDEX(AR59:AR105,MATCH(CV17,AQ59:AQ105,0)),IF(T16="SCS-18-160",INDEX(AX59:AX104,MATCH(CV17,AW59:AW104,0)),IF(T16="SCS-30-115",INDEX(BD59:BD118,MATCH(CV17,BC59:BC118,0)),"Error")))))))) ->  | CZ19: Useless | DA19: =COUNTIF(DA4:DA18,"<1") -> 12
I21: =IFERROR(IF(AND(T17>=(INDEX(DB33:DB40,8-DA41)-((7-DA41)*15)),T17<=(INDEX(DB33:DB40,8-DA41))),"",A185),A185) -> The voltage selected does not satisfy the pump requirements!!
I23: =IFERROR(IF(OR(T18>(T9+100),T18<J17),A186,""),A186) -> 
AG25: 3-200 | AH25: TDH | AI25: GPM | AJ25: AMPS | AK25: WATTS | AL25: =E16 -> 0.44 | AM25: 8-90 | AN25: TDH | AO25: GPM | AP25: AMPS | AQ25: WATTS | AR25: =E16 -> 0.44 | AS25: 12-95 | AT25: TDH | AU25: GPM | AV25: AMPS | AW25: WATTS | AX25: =E16 -> 0.44 | AY25: 18-45 | AZ25: TDH | BA25: GPM | BB25: AMPS | BC25: WATTS | BD25: =E16 -> 0.44
AG26: 30 | AH26: 0 | AI26: 4.2 | AJ26: 5.85 | AK26: 176 | AL26: 0 | AM26: 30 | AN26: 0 | AO26: 10.3 | AP26: 5.11 | AQ26: 153 | AR26: 0 | AS26: 30 | AT26: 0 | AU26: 12.2 | AV26: 4.57 | AW26: 137 | AX26: 0 | AY26: 30 | AZ26: 0 | BA26: 23 | BB26: 5.15 | BC26: 155 | BD26: 0
AH27: 23 | AI27: 3.8 | AJ27: 5.87 | AK27: 176 | AL27: 0.09 | AN27: 12 | AO27: 9.4 | AP27: 5.18 | AQ27: 155 | AR27: 0.13 | AT27: 12 | AU27: 10.8 | AV27: 4.57 | AW27: 137 | AX27: 0.17 | AZ27: 12 | BA27: 18.6 | BB27: 5.29 | BC27: 159 | BD27: 0.26 | CD27: SCS | CG27: meets | CH27: meets
A28: SCS series Centrifugal pumps are high-power submersibles, intended for pumping higher water volumes from greater depth | T28: SCS series Centrifugal type Solar Pumps | AH28: 46 | AI28: 3.4 | AJ28: 5.87 | AK28: 176 | AL28: 0.17 | AN28: 23 | AO28: 8.3 | AP28: 5.3 | AQ28: 159 | AR28: 0.23 | AT28: 23 | AU28: 8.5 | AV28: 4.47 | AW28: 134 | AX28: 0.28 | AZ28: 23 | BA28: 13.5 | BB28: 5.3 | BC28: 159 | BD28: 0.37 | CD28: 1/2 HP | CG28: gpm | CH28: tdh | CK28: TDH | CL28: gpm
A29: Can be used to fill an open tank or in a pressurized system. | AH29: 69 | AI29: 2.9 | AJ29: 5.83 | AK29: 175 | AL29: 0.22 | AN29: 35 | AO29: 7.2 | AP29: 5.36 | AQ29: 161 | AR29: 0.29 | AT29: 35 | AU29: 5.4 | AV29: 4.21 | AW29: 126 | AX29: 0.28 | AZ29: 35 | BA29: 5.6 | BB29: 4.62 | BC29: 139 | BD29: 0.26 | CH29: 30 | CI29: Volts | CK29: Vlookup | CL29: Match | CN29: Order
A30: Operate on 140 to 2000 watts of DC power at 30 to 180 volts from any combination of DC power sources. | U30: Recommended SCS Pump and Voltage | AH30: 92 | AI30: 2.4 | AJ30: 5.7 | AK30: 171 | AL30: 0.24 | AN30: 46 | AO30: 5.9 | AP30: 5.33 | AQ30: 160 | AR30: 0.32 | AT30: 46 | AU30: 0 | AV30: 3.11 | AW30: 93 | AX30: 0 | AZ30: 46 | BA30: 0 | BB30: 3.3 | BC30: 99 | BD30: 0 | CC30: 8 | CD30: 2-280 | CE30: =-0.0174*T4+4.0148 -> 2.0138 | CG30: =IF($T$2<CE30,"Y","N") -> N | CH30: =IF($T$4<#REF!,"Y","N") ->  | CK30: =IF(CI30=1,VLOOKUP($T$4,#REF!,4,TRUE),0) -> 0 | CL30: =IF(CI30=1,INDEX(#REF!,MATCH($T$2,#REF!,-1)),0) -> 0 | CM30: 2-280 | CP30: =COUNTIF($CK$38:$CN$38,CQ30) -> 0 | CQ30: 2-280
A31: Constructed of corrosion resistant marine grade bronze and stainless steel - multi-stage centrifugal type. | U31: =CU15 -> 18-160 | Y31: =CW15 -> 90 | Z31: Volts | AH31: 116 | AI31: 1.8 | AJ31: 5.49 | AK31: 165 | AL31: 0.24 | AN31: 58 | AO31: 4.6 | AP31: 5.22 | AQ31: 157 | AR31: 0.32 | AS31: 45 | AT31: 0 | AU31: 17.6 | AV31: 6.98 | AW31: 314 | AX31: 0 | AY31: 45 | AZ31: 0 | BA31: 33 | BB31: 8 | BC31: 360 | BD31: 0 | CC31: 7 | CD31: 3-200 | CE31: =-0.025*T4+4.461 -> 1.586 | CG31: =IF($T$2<CE31,"Y","N") -> N | CH31: =IF($T$4<AH33,"Y","N") -> Y | CI31: =IF(AND(CG31="Y",CH31="Y"),1,0) -> 0 | CK31: =IF(CI31=1,VLOOKUP($T$4,AH26:AK33,4,TRUE),0) -> 0 | CL31: =IF(CI31=1,INDEX(AK26:AK33,MATCH($T$2,AI26:AI33,-1)),0) -> 0 | CM31: 3-200 | CP31: 0 | CQ31: 3-200
A32: The submersible motors incorporate the latest in high efficiency, permanent magnet, brushless DC technology. | AH32: 139 | AI32: 1 | AJ32: 5.04 | AK32: 151 | AL32: 0.17 | AN32: 69 | AO32: 3 | AP32: 4.77 | AQ32: 143 | AR32: 0.27 | AT32: 12 | AU32: 16.5 | AV32: 6.98 | AW32: 314 | AX32: 0.11 | AZ32: 12 | BA32: 30 | BB32: 8.1 | BC32: 365 | BD32: 0.18 | CC32: 3 | CD32: 5-160 | CE32: =-0.0478*T4+4.34 -> -1.157 | CG32: =IF($T$2<CE32,"Y","N") -> N | CH32: =IF($T$4<#REF!,"Y","N") ->  | CK32: =IF(CI32=1,VLOOKUP($T$4,#REF!,4,TRUE),0) -> 0 | CL32: =IF(CI32=1,INDEX(#REF!,MATCH($T$2,#REF!,-1)),0) -> 0 | CM32: 5-160 | CP32: 0 | CQ32: 5-160
A33: Supplied with an industry standard NEMA connection, they bolt directly to standard 4” submersible pump ends. | AH33: 162 | AI33: 0 | AJ33: 4.38 | AK33: 131 | AL33: 0 | AN33: 81 | AO33: 1.2 | AP33: 4.23 | AQ33: 127 | AR33: 0.14 | AT33: 23 | AU33: 15.2 | AV33: 6.97 | AW33: 314 | AX33: 0.21 | AZ33: 23 | BA33: 26.5 | BB33: 8.36 | BC33: 376 | BD33: 0.31 | CC33: 4 | CD33: 5-95 | CE33: =-0.0915*T4+7.6566 -> -2.8659 | CG33: N | CH33: =IF($T$4<#REF!,"Y","N") ->  | CK33: =IF(CI33=1,VLOOKUP($T$4,#REF!,4,TRUE),0) -> 0 | CL33: =IF(CI33=1,INDEX(#REF!,MATCH($T$2,#REF!,-1)),0) -> 0 | CM33: 5-95 | CP33: 0 | CQ33: 5-95 | CX33: 45 | CZ33: 15 | DA33: =IF(OR(AND($T$16="SDS-Q-128",$CI$7=1),AND($T$16="SDS-Q-135",$CI$9=1),AND($T$16="SDS-T-128",CI10=1)),1.00008,0.00008) -> 8e-05 | DB33: =INDEX($CZ$33:$CZ$40,MATCH(LARGE($DA$33:$DA$40,1),$DA$33:$DA$40,0)) -> 90 | DC33: =OFFSET(DB33,0,0,8-DA41,1) -> 90
AG34: 45 | AH34: 0 | AI34: 5.7 | AJ34: 9.23 | AK34: 415 | AL34: 0 | AN34: 92 | AO34: 0 | AP34: 3.81 | AQ34: 114 | AR34: 0 | AT34: 35 | AU34: 13.8 | AV34: 6.9 | AW34: 311 | AX34: 0.29 | AZ34: 35 | BA34: 22.5 | BB34: 8.55 | BC34: 385 | BD34: 0.38 | CC34: 6 | CD34: 8-90 | CE34: =-0.1145*T4+10.836 -> -2.3315 | CG34: N | CH34: =IF($T$4<AN34,"Y","N") -> N | CI34: 0 | CK34: =IF(CI34=1,VLOOKUP($T$4,AN26:AQ34,4,TRUE),0) -> 0 | CL34: =IF(CI34=1,INDEX(AQ26:AQ34,MATCH($T$2,AO26:AO34,-1)),0) -> 0 | CM34: 8-90 | CP34: 0 | CQ34: 8-90 | CZ34: 30 | DA34: =IF(OR(AND(T16="SCS-3-200",CI31=1),AND(T16="SCS-8-90",CI34=1),AND(T16="SCS-12-95",CI35=1),AND(T16="SCS-18-45",CI37=1)),1.00007,0.00007) -> 7e-05 | DB34: =INDEX($CZ$33:$CZ$40,MATCH(LARGE($DA$33:$DA$40,2),$DA$33:$DA$40,0)) -> 105
AH35: 23 | AI35: 5.5 | AJ35: 9.23 | AK35: 415 | AL35: 0.06 | AM35: 45 | AN35: 0 | AO35: 14.2 | AP35: 8.2 | AQ35: 369 | AR35: 0 | AT35: 46 | AU35: 12.1 | AV35: 6.77 | AW35: 305 | AX35: 0.35 | AZ35: 46 | BA35: 17.7 | BB35: 8.44 | BC35: 380 | BD35: 0.41 | CC35: 1 | CD35: 12-95 | CE35: =-0.02585*T4+13.378 -> 10.40525 | CG35: Y | CH35: =IF($T$4<AT30,"Y","N") -> N | CI35: 0 | CK35: =IF(CI35=1,VLOOKUP($T$4,AT26:AW30,4,TRUE),0) -> 0 | CL35: =IF(CI35=1,INDEX(AW26:AW30,MATCH($T$2,AU26:AU30,-1)),0) -> 0 | CM35: 12-95 | CP35: 0 | CQ35: 12-95 | CX35: =INDEX(DB33:DB40,8-DA41) -> 105 | CZ35: 45 | DA35: =IF(OR(AND(T16="SCS-3-200",CI43=1),AND(T16="SCS-8-90",CI46=1),AND(T16="SCS-12-95",CI47=1),AND(T16="SCS-18-45",CI49=1),AND(T16="SCS-18-160",CI50=1)),1.00006,0.00006) -> 6e-05 | DB35: =INDEX($CZ$33:$CZ$40,MATCH(LARGE($DA$33:$DA$40,3),$DA$33:$DA$40,0)) -> 15
AH36: 46 | AI36: 5.3 | AJ36: 9.25 | AK36: 416 | AL36: 0.11 | AN36: 12 | AO36: 13.6 | AP36: 8.27 | AQ36: 372 | AR36: 0.08 | AT36: 58 | AU36: 10 | AV36: 6.6 | AW36: 297 | AX36: 0.37 | AZ36: 58 | BA36: 12 | BB36: 7.92 | BC36: 356 | BD36: 0.37 | CC36: 5 | CD36: 14-70 | CE36: =-0.2886*T4+18.57 -> -14.619 | CG36: N | CH36: =IF($T$4<#REF!,"Y","N") ->  | CK36: =IF(CI36=1,VLOOKUP($T$4,#REF!,4,TRUE),0) -> 0 | CL36: =IF(CI36=1,INDEX(#REF!,MATCH($T$2,#REF!,-1)),0) -> 0 | CM36: 14-70 | CP36: 0 | CQ36: 14-70 | CX36: =INDEX(DB33:DB40,8-DA41)-((7-DA41)*15) -> 90 | CZ36: 60 | DA36: =IF(OR(AND(T16="SCS-5-160",CI55=1),AND(T16="SCS-12-95",CI56=1),AND(T16="SCS-4-325",CI57=1),AND(T16="SCS-6-185",CI58=1),AND(T16="SCS-10-230",CI59=1),AND(T16="SCS-11-210",CI60=1),AND(T16="SCS-14-160",CI61=1),AND(T16="SCS-18-160",CI62=1),AND(T16="SCS-30-115",CI63=1)),1.00005,0.00005) -> 5e-05 | DB36: =INDEX($CZ$33:$CZ$40,MATCH(LARGE($DA$33:$DA$40,4),$DA$33:$DA$40,0)) -> 30
AH37: 69 | AI37: 5 | AJ37: 9.26 | AK37: 417 | AL37: 0.16 | AN37: 23 | AO37: 13 | AP37: 8.35 | AQ37: 376 | AR37: 0.15 | AT37: 69 | AU37: 7.9 | AV37: 6.34 | AW37: 285 | AX37: 0.36 | AZ37: 69 | BA37: 6 | BB37: 7.21 | BC37: 324 | BD37: 0.24 | CC37: 2 | CD37: 18-45 | CE37: =-0.513*T4+24.041 -> -34.954 | CG37: N | CH37: =IF($T$4<AZ30,"Y","N") -> N | CI37: 0 | CK37: =IF(CI37=1,VLOOKUP($T$4,AZ26:BC30,4,TRUE),0) -> 0 | CL37: =IF(CI37=1,INDEX(BC26:BC30,MATCH($T$2,BA26:BA30,-1)),0) -> 0 | CM37: 18-45 | CP37: 0 | CQ37: 18-45 | CZ37: 75 | DA37: =IF(OR(AND(T16="SCS-3-425",CI68=1),AND(T16="SCS-4-325",CI69=1),AND(T16="SCS-6-185",CI70=1),AND(T16="SCS-10-230",CI71=1),AND(T16="SCS-11-210",CI72=1),AND(T16="SCS-14-160",CI73=1),AND(T16="SCS-18-160",CI74=1),AND(T16="SCS-30-115",CI75=1)),1.00004,0.00004) -> 4e-05 | DB37: =INDEX($CZ$33:$CZ$40,MATCH(LARGE($DA$33:$DA$40,5),$DA$33:$DA$40,0)) -> 45
AH38: 92 | AI38: 4.7 | AJ38: 9.24 | AK38: 416 | AL38: 0.2 | AN38: 35 | AO38: 12.3 | AP38: 8.46 | AQ38: 381 | AR38: 0.21 | AT38: 81 | AU38: 5.4 | AV38: 5.87 | AW38: 264 | AX38: 0.31 | AZ38: 81 | BA38: 0 | BB38: 6.21 | BC38: 279 | BD38: 0 | CK38: =VLOOKUP(SMALL(CK30:CK37,COUNTIF(CK30:CK37,0)+1),CK30:CM37,3,FALSE) ->  | CL38: =VLOOKUP(SMALL(CL30:CL37,COUNTIF(CL30:CL37,0)+1),CL30:CM37,2,FALSE) ->  | CN38: =IF(CI35=1,CD35,IF(CI37=1,CD37,IF(CI32=1,CD32,IF(CI33=1,CD33,IF(CI36=1,CD36,IF(CI34=1,CD34,IF(CI31=1,CD31,IF(CI30=1,CD30,"ERROR")))))))) -> ERROR | CP38: =SUM(CP30:CP37) -> 0 | CQ38: =IF(CP38>0,VLOOKUP(MAX(CP30:CP37),CP30:CQ37,2,FALSE),"None") -> None | CZ38: 90 | DA38: =IF(OR(AND(T16="SCS-3-425",CI80=1),AND(T16="SCS-4-325",CI81=1),AND(T16="SCS-6-185",CI82=1),AND(T16="SCS-10-230",CI83=1),AND(T16="SCS-11-210",CI84=1),AND(T16="SCS-14-160",CI85=1),AND(T16="SCS-18-160",CI86=1),AND(T16="SCS-30-115",CI87=1)),1.00003,0.00003) -> 1.00003 | DB38: =INDEX($CZ$33:$CZ$40,MATCH(LARGE($DA$33:$DA$40,6),$DA$33:$DA$40,0)) -> 60
AH39: 116 | AI39: 4.4 | AJ39: 9.21 | AK39: 414 | AL39: 0.23 | AN39: 46 | AO39: 11.6 | AP39: 8.54 | AQ39: 384 | AR39: 0.26 | AT39: 92 | AU39: 1.5 | AV39: 4.82 | AW39: 217 | AX39: 0.12 | CZ39: 105 | DA39: =IF(OR(AND(T16="SCS-3-425",CI92=1),AND(T16="SCS-4-325",CI93=1),AND(T16="SCS-6-185",CI94=1),AND(T16="SCS-10-230",CI95=1),AND(T16="SCS-11-210",CI96=1),AND(T16="SCS-14-160",CI97=1),AND(T16="SCS-18-160",CI98=1),AND(T16="SCS-30-115",CI99=1)),1.00002,0.00002) -> 1.00002 | DB39: =INDEX($CZ$33:$CZ$40,MATCH(LARGE($DA$33:$DA$40,7),$DA$33:$DA$40,0)) -> 75
AH40: 139 | AI40: 4 | AJ40: 9.17 | AK40: 413 | AL40: 0.25 | AN40: 58 | AO40: 10.9 | AP40: 8.6 | AQ40: 387 | AR40: 0.31 | AT40: 104 | AU40: 0 | AV40: 4.5 | AW40: 203 | AX40: 0 | CK40: TDH | CL40: gpm | CZ40: 120 | DA40: =IF(OR(AND(T16="SCS-4-325",CI104=1),AND(T16="SCS-6-185",CI105=1),AND(T16="SCS-11-210",CI106=1),AND(T16="SCS-18-160",CI107=1),AND(T16="SCS-30-115",CI108=1)),1.00001,0.00001) -> 1e-05 | DB40: =INDEX($CZ$33:$CZ$40,MATCH(LARGE($DA$33:$DA$40,8),$DA$33:$DA$40,0)) -> 120
AH41: 162 | AI41: 3.6 | AJ41: 9.1 | AK41: 410 | AL41: 0.27 | AN41: 69 | AO41: 10 | AP41: 8.63 | AQ41: 388 | AR41: 0.34 | AS41: 60 | AT41: 0 | AU41: 21.9 | AV41: 9.38 | AW41: 563 | AX41: 0 | CH41: 45 | CI41: Volts | CK41: Vlookup | CL41: Match | CN41: Order | CZ41: Useless | DA41: =COUNTIF(DA33:DA40,"<1") -> 6
AH42: 185 | AI42: 3.2 | AJ42: 8.98 | AK42: 404 | AL42: 0.28 | AN42: 81 | AO42: 9.1 | AP42: 8.6 | AQ42: 387 | AR42: 0.36 | AT42: 12 | AU42: 21 | AV42: 9.37 | AW42: 562 | AX42: 0.081 | CC42: 9 | CD42: 2-280 | CE42: =-0.0134*T4+5.7494 -> 4.2084 | CG42: =IF($T$2<CE42,"Y","N") -> N | CH42: =IF($T$4<#REF!,"Y","N") ->  | CK42: =IF(CI42=1,VLOOKUP($T$4,#REF!,4,TRUE),0) -> 0 | CL42: =IF(CI42=1,INDEX(#REF!,MATCH($T$2,#REF!,-1)),0) -> 0 | CM42: 2-280 | CP42: =COUNTIF($CK$51:$CN$51,CQ42) -> 0 | CQ42: 2-280
AH43: 208 | AI43: 2.8 | AJ43: 8.78 | AK43: 395 | AL43: 0.27 | AN43: 92 | AO43: 8.2 | AP43: 8.55 | AQ43: 385 | AR43: 0.37 | AT43: 23 | AU43: 20.1 | AV43: 9.36 | AW43: 562 | AX43: 0.156 | CC43: 8 | CD43: 3-200 | CE43: =-0.0174*T4+6.1709 -> 4.1699 | CG43: =IF($T$2<CE43,"Y","N") -> N | CH43: =IF($T$4<AH48,"Y","N") -> Y | CI43: =IF(AND(CG43="Y",CH43="Y"),1,0) -> 0 | CK43: =IF(CI43=1,VLOOKUP($T$4,AH34:AK48,4,TRUE),0) -> 0 | CL43: =IF(CI43=1,INDEX(AK34:AK48,MATCH($T$2,AI34:AI48,-1)),0) -> 0 | CM43: 3-200 | CP43: 0 | CQ43: 3-200
AH44: 231 | AI44: 2.3 | AJ44: 8.55 | AK44: 985 | AL44: 0.26 | AN44: 104 | AO44: 7.2 | AP44: 8.47 | AQ44: 381 | AR44: 0.37 | AT44: 35 | AU44: 19.1 | AV44: 9.34 | AW44: 560 | AX44: 0.222 | CC44: 2 | CD44: 5-160 | CE44: =-0.0372*T4+6.7338 -> 2.4558 | CG44: N | CH44: =IF($T$4<#REF!,"Y","N") ->  | CK44: =IF(CI44=1,VLOOKUP($T$4,#REF!,4,TRUE),0) -> 0 | CL44: =IF(CI44=1,INDEX(#REF!,MATCH($T$2,#REF!,-1)),0) -> 0 | CM44: 5-160 | CP44: 0 | CQ44: 5-160
AH45: 254 | AI45: 1.8 | AJ45: 8.2 | AK45: 369 | AL45: 0.23 | AN45: 116 | AO45: 6 | AP45: 8.24 | AQ45: 371 | AR45: 0.35 | AT45: 46 | AU45: 18 | AV45: 9.36 | AW45: 562 | AX45: 0.279 | CC45: 4 | CD45: 5-95 | CE45: =-0.067*T4+11.284 -> 3.579 | CG45: N | CH45: =IF($T$4<#REF!,"Y","N") ->  | CK45: =IF(CI45=1,VLOOKUP($T$4,#REF!,4,TRUE),0) -> 0 | CL45: =IF(CI45=1,INDEX(#REF!,MATCH($T$2,#REF!,-1)),0) -> 0 | CM45: 5-95 | CP45: 0 | CQ45: 5-95
AH46: 277 | AI46: 1.3 | AJ46: 7.82 | AK46: 352 | AL46: 0.19 | AN46: 127 | AO46: 4.8 | AP46: 7.9 | AQ46: 356 | AR46: 0.32 | AT46: 58 | AU46: 16.9 | AV46: 9.3 | AW46: 558 | AX46: 0.329 | CC46: 6 | CD46: 8-90 | CE46: =-0.085*T4+15.283 -> 5.508 | CG46: N | CH46: =IF($T$4<AN50,"Y","N") -> Y | CI46: 0 | CK46: =IF(CI46=1,VLOOKUP($T$4,AN35:AQ50,4,TRUE),0) -> 0 | CL46: =IF(CI46=1,INDEX(AQ35:AQ50,MATCH($T$2,AO35:AO50,-1)),0) -> 0 | CM46: 8-90 | CP46: 0 | CQ46: 8-90
AH47: 300 | AI47: 0.7 | AJ47: 7.3 | AK47: 329 | AL47: 0.12 | AN47: 139 | AO47: 3.4 | AP47: 7.38 | AQ47: 332 | AR47: 0.27 | AT47: 69 | AU47: 15.5 | AV47: 9.21 | AW47: 553 | AX47: 0.366 | CC47: 3 | CD47: 12-95 | CE47: =-0.1748*T4+19.09 -> -1.012 | CG47: N | CH47: =IF($T$4<AT40,"Y","N") -> N | CI47: 0 | CK47: =IF(CI47=1,VLOOKUP($T$4,AT31:AW40,4,TRUE),0) -> 0 | CL47: =IF(CI47=1,INDEX(AW31:AW40,MATCH($T$2,AU31:AU40,-1)),0) -> 0 | CM47: 12-95 | CP47: 0 | CQ47: 12-95
AH48: 323 | AI48: 0 | AJ48: 6.78 | AK48: 305 | AL48: 0 | AN48: 150 | AO48: 1.9 | AP48: 6.89 | AQ48: 310 | AR48: 0.17 | AT48: 81 | AU48: 14 | AV48: 9.09 | AW48: 545 | AX48: 0.391 | CC48: 7 | CD48: 14-70 | CE48: =-0.2132*T4+26.534 -> 2.016 | CG48: N | CH48: =IF($T$4<#REF!,"Y","N") ->  | CK48: =IF(CI48=1,VLOOKUP($T$4,#REF!,4,TRUE),0) -> 0 | CL48: =IF(CI48=1,INDEX(#REF!,MATCH($T$2,#REF!,-1)),0) -> 0 | CM48: 14-70 | CP48: 0 | CQ48: 14-70
AN49: 162 | AO49: 0.5 | AP49: 6.58 | AQ49: 296 | AR49: 0.05 | AT49: 92 | AU49: 12.3 | AV49: 8.9 | AW49: 534 | AX49: 0.401 | CC49: 5 | CD49: 18-45 | CE49: =-0.4125*T4+35.167 -> -12.2705 | CG49: N | CH49: =IF($T$4<AZ38,"Y","N") -> N | CI49: 0 | CK49: =IF(CI49=1,VLOOKUP($T$4,AZ31:BC38,4,TRUE),0) -> 0 | CL49: =IF(CI49=1,INDEX(BC31:BC38,MATCH($T$2,BA31:BA38,-1)),0) -> 0 | CM49: 18-45 | CP49: 0 | CQ49: 18-45
AN50: 173 | AO50: 0 | AP50: 6.01 | AQ50: 270 | AR50: 0 | AT50: 104 | AU50: 10.7 | AV50: 8.69 | AW50: 521 | AX50: 0.402 | CC50: 1 | CD50: 18-160 | CE50: =-0.3127*T4+15.854 -> -20.1065 | CG50: N | CH50: =IF($T$4<AT63,"Y","N") -> N | CI50: 0 | CK50: =IF(CI50=1,VLOOKUP($T$4,AT59:AW63,4,TRUE),0) -> 0 | CL50: =IF(CI50=1,INDEX(AW59:AW63,MATCH($T$2,AU59:AU63,-1)),0) -> 0 | CM50: 18-160 | CP50: 0 | CQ50: 18-160
AT51: 116 | AU51: 9 | AV51: 8.38 | AW51: 503 | AX51: 0.389 | CK51: =VLOOKUP(SMALL(CK42:CK50,COUNTIF(CK42:CK50,0)+1),CK42:CM50,3,FALSE) ->  | CL51: =VLOOKUP(SMALL(CL42:CL50,COUNTIF(CL42:CL50,0)+1),CL42:CM50,2,FALSE) ->  | CN51: =IF(CI50=1,CD50,IF(CI44=1,CD44,IF(CI47=1,CD47,IF(CI45=1,CD45,IF(CI49=1,CD49,IF(CI46=1,CD46,IF(CI48=1,CD48,IF(CI43=1,CD43,IF(CI42=1,CD42,"ERROR"))))))))) -> ERROR | CP51: =SUM(CP42:CP50) -> 0 | CQ51: =IF(CP51>0,VLOOKUP(MAX(CP42:CP50),CP42:CQ50,2,FALSE),"None") -> None
AT52: 127 | AU52: 7 | AV52: 7.96 | AW52: 478 | AX52: 0.351
AT53: 139 | AU53: 4.4 | AV53: 7.29 | AW53: 437 | AX53: 0.263 | CK53: TDH | CL53: gpm
AT54: 150 | AU54: 1.1 | AV54: 6.44 | AW54: 386 | AX54: 0.081 | CH54: 60 | CI54: Volts | CK54: Vlookup | CL54: Match | CN54: Order
AT55: 162 | AU55: 0 | AV55: 5.98 | AW55: 359 | AX55: 0 | CC55: 8 | CD55: 5-160 | CE55: =-0.0283*T4+8.5966 -> 5.3421 | CG55: =IF($T$2<CE55,"Y","N") -> N | CH55: =IF($T$4<#REF!,"Y","N") ->  | CK55: =IF(CI55=1,VLOOKUP($T$4,#REF!,4,TRUE),0) -> 0 | CL55: =IF(CI55=1,INDEX(#REF!,MATCH($T$2,#REF!,-1)),0) -> 0 | CM55: 5-160 | CP55: =COUNTIF($CK$64:$CN$64,CQ55) -> 0 | CQ55: 5-160
CC56: 9 | CD56: 12-95 | CE56: =-0.1367*T4+23.798 -> 8.0775 | CG56: =IF($T$2<CE56,"Y","N") -> N | CH56: =IF($T$4<AT55,"Y","N") -> Y | CI56: =IF(AND(CG56="Y",CH56="Y"),1,0) -> 0 | CK56: =IF(CI56=1,VLOOKUP($T$4,AT41:AW55,4,TRUE),0) -> 0 | CL56: =IF(CI56=1,INDEX(AW41:AW55,MATCH($T$2,AU41:AU55,-1)),0) -> 0 | CM56: 12-95 | CP56: 0 | CQ56: 12-95
CC57: 3 | CD57: 4-325 | CE57: =-0.0224*T4+4.8121 -> 2.2361 | CG57: N | CH57: =IF($T$4<AH65,"Y","N") -> Y | CI57: 0 | CK57: =IF(CI57=1,VLOOKUP($T$4,AH59:AK65,4,TRUE),0) -> 0 | CL57: =IF(CI57=1,INDEX(AK59:AK65,MATCH($T$2,AI59:AI65,-1)),0) -> 0 | CM57: 4-325 | CP57: 0 | CQ57: 4-325
AG58: 4-325 | AH58: TDH | AI58: GPM | AJ58: AMPS | AK58: WATTS | AL58: =E16 -> 0.44 | AM58: 10-230 | AN58: TDH | AO58: GPM | AP58: AMPS | AQ58: WATTS | AR58: =E16 -> 0.44 | AS58: 18-160 | AT58: TDH | AU58: GPM | AV58: AMPS | AW58: WATTS | AX58: =E16 -> 0.44 | AY58: 30-115 | AZ58: TDH | BA58: GPM | BB58: AMPS | BC58: WATTS | BD58: =E16 -> 0.44 | CC58: 1 | CD58: 6-185 | CE58: =-0.0626*T4+6.24 -> -0.959 | CG58: N | CH58: =IF($T$4<#REF!,"Y","N") ->  | CK58: =IF(CI58=1,VLOOKUP($T$4,#REF!,4,TRUE),0) -> 0 | CL58: =IF(CI58=1,INDEX(#REF!,MATCH($T$2,#REF!,-1)),0) -> 0 | CM58: 6-185 | CP58: 0 | CQ58: 6-185
AG59: 60 | AH59: 0 | AI59: 4.5 | AJ59: 3.93 | AK59: 236 | AL59: 0 | AM59: 60 | AN59: 0 | AO59: 11.3 | AP59: 5.1 | AQ59: 306 | AR59: 0 | AS59: 45 | AT59: 0 | AU59: 15 | AV59: 2.8 | AW59: 126 | AX59: 0 | AY59: 60 | AZ59: 0 | BA59: 30 | BB59: 3.71 | BC59: 223 | BD59: 0 | CC59: 7 | CD59: 10-230 | CE59: =-0.076*T4+12.326 -> 3.586 | CG59: N | CH59: =IF($T$4<AN65,"Y","N") -> Y | CI59: 0 | CK59: =IF(CI59=1,VLOOKUP($T$4,AN59:AQ65,4,TRUE),0) -> 0 | CL59: =IF(CI59=1,INDEX(AQ59:AQ65,MATCH($T$2,AO59:AO65,-1)),0) -> 0 | CM59: 10-230 | CP59: 0 | CQ59: 10-230
AH60: 35 | AI60: 4 | AJ60: 3.95 | AK60: 237 | AL60: 0.11 | AN60: 23 | AO60: 10.3 | AP60: 5.02 | AQ60: 301 | AR60: 0.15 | AT60: 12 | AU60: 12 | AV60: 2.77 | AW60: 125 | AX60: 0.22 | AZ60: 12 | BA60: 27.6 | BB60: 3.82 | BC60: 229 | BD60: 0.26 | CC60: 5 | CD60: 11-210 | CE60: =-0.1322*T4+13.68 -> -1.523 | CG60: N | CH60: =IF($T$4<#REF!,"Y","N") ->  | CK60: =IF(CI60=1,VLOOKUP($T$4,#REF!,4,TRUE),0) -> 0 | CL60: =IF(CI60=1,INDEX(#REF!,MATCH($T$2,#REF!,-1)),0) -> 0 | CM60: 11-210 | CP60: 0 | CQ60: 11-210
AH61: 69 | AI61: 3.5 | AJ61: 3.94 | AK61: 236 | AL61: 0.19 | AN61: 46 | AO61: 9.3 | AP61: 4.99 | AQ61: 299 | AR61: 0.27 | AT61: 23 | AU61: 10 | AV61: 2.69 | AW61: 121 | AX61: 0.36 | AZ61: 23 | BA61: 24 | BB61: 4.14 | BC61: 248 | BD61: 0.42 | CC61: 6 | CD61: 14-160 | CE61: =-0.1965*T4+20 -> -2.5975 | CG61: N | CH61: =IF($T$4<#REF!,"Y","N") ->  | CK61: =IF(CI61=1,VLOOKUP($T$4,#REF!,4,TRUE),0) -> 0 | CL61: =IF(CI61=1,INDEX(#REF!,MATCH($T$2,#REF!,-1)),0) -> 0 | CM61: 14-160 | CP61: 0 | CQ61: 14-160
AH62: 104 | AI62: 2.8 | AJ62: 3.86 | AK62: 232 | AL62: 0.24 | AN62: 69 | AO62: 8 | AP62: 4.91 | AQ62: 295 | AR62: 0.35 | AT62: 35 | AU62: 6 | AV62: 2.43 | AW62: 109 | AX62: 0.36 | AZ62: 35 | BA62: 18 | BB62: 4.27 | BC62: 256 | BD62: 0.46 | CC62: 2 | CD62: 18-160 | CE62: =-0.2078*T4+19.28 -> -4.617 | CG62: N | CH62: =IF($T$4<AT68,"Y","N") -> N | CI62: 0 | CK62: =IF(CI62=1,VLOOKUP($T$4,AT64:AW68,4,TRUE),0) -> 0 | CL62: =IF(CI62=1,INDEX(AW64:AW68,MATCH($T$2,AU64:AU68,-1)),0) -> 0 | CM62: 18-160 | CP62: 0 | CQ62: 18-160
AH63: 139 | AI63: 1.9 | AJ63: 3.69 | AK63: 221 | AL63: 0.22 | AN63: 92 | AO63: 6.5 | AP63: 4.7 | AQ63: 282 | AR63: 0.4 | AT63: 46 | AU63: 0 | AV63: 1.81 | AW63: 81 | AX63: 0 | AZ63: 46 | BA63: 11 | BB63: 4 | BC63: 240 | BD63: 0.4 | CC63: 4 | CD63: 30-115 | CE63: =-0.5095*T4+33.209 -> -25.3835 | CG63: N | CH63: =IF($T$4<AZ64,"Y","N") -> N | CI63: 0 | CK63: =IF(CI63=1,VLOOKUP($T$4,AZ59:BC64,4,TRUE),0) -> 0 | CL63: =IF(CI63=1,INDEX(BC59:BC63,MATCH($T$2,BA59:BA63,-1)),0) -> 0 | CM63: 30-115 | CP63: 0 | CQ63: 30-115
AH64: 173 | AI64: 0.7 | AJ64: 3.25 | AK64: 195 | AL64: 0.12 | AN64: 116 | AO64: 4 | AP64: 4.29 | AQ64: 257 | AR64: 0.34 | AS64: 60 | AT64: 0 | AU64: 18.2 | AV64: 4.3 | AW64: 258 | AX64: 0 | AZ64: 58 | BA64: 0 | BB64: 3.09 | BC64: 185 | BD64: 0 | CK64: =VLOOKUP(SMALL(CK55:CK63,COUNTIF(CK55:CK63,0)+1),CK55:CM63,3,FALSE) ->  | CL64: =VLOOKUP(SMALL(CL55:CL63,COUNTIF(CL55:CL63,0)+1),CL55:CM63,2,FALSE) ->  | CN64: =IF(CI58=1,CD58,IF(CI62=1,CD62,IF(CI57=1,CD57,IF(CI63=1,CD63,IF(CI60=1,CD60,IF(CI61=1,CD61,IF(CI59=1,CD59,IF(CI55=1,CD55,IF(CI56=1,CD56,"ERROR"))))))))) -> ERROR | CP64: =SUM(CP55:CP63) -> 0 | CQ64: =IF(CP64>0,VLOOKUP(MAX(CP55:CP63),CP55:CQ63,2,FALSE),"None") -> None
AH65: 208 | AI65: 0 | AJ65: 2.93 | AK65: 176 | AL65: 0 | AN65: 139 | AO65: 0 | AP65: 3.16 | AQ65: 190 | AR65: 0 | AT65: 23 | AU65: 15.4 | AV65: 4.29 | AW65: 257 | AX65: 0.26 | AY65: 75 | AZ65: 0 | BA65: 36 | BB65: 4.75 | BC65: 356 | BD65: 0
AG66: 75 | AH66: 0 | AI66: 5.4 | AJ66: 5.11 | AK66: 383 | AL66: 0 | AM66: 75 | AN66: 0 | AO66: 13.6 | AP66: 6.61 | AQ66: 496 | AR66: 0 | AT66: 46 | AU66: 11 | AV66: 4.05 | AW66: 243 | AX66: 0.39 | AZ66: 12 | BA66: 34 | BB66: 4.85 | BC66: 364 | BD66: 0.2 | CK66: TDH | CL66: gpm
AH67: 35 | AI67: 5 | AJ67: 5.12 | AK67: 384 | AL67: 0.08 | AN67: 23 | AO67: 12.8 | AP67: 6.52 | AQ67: 489 | AR67: 0.11 | AT67: 69 | AU67: 4 | AV67: 3.36 | AW67: 202 | AX67: 0.26 | AZ67: 23 | BA67: 31.3 | BB67: 5.18 | BC67: 389 | BD67: 0.35 | CH67: 75 | CI67: Volts | CK67: Vlookup | CL67: Match | CN67: Order
AH68: 69 | AI68: 4.6 | AJ68: 5.13 | AK68: 385 | AL68: 0.15 | AN68: 46 | AO68: 12 | AP68: 6.53 | AQ68: 490 | AR68: 0.21 | AT68: 92 | AU68: 0 | AV68: 2.89 | AW68: 173 | AX68: 0 | AZ68: 35 | BA68: 28 | BB68: 5.44 | BC68: 408 | BD68: 0.45 | CC68: 7 | CD68: 3-425 | CE68: =-0.0134*T4+5.5078 -> 3.9668 | CG68: =IF($T$2<CE68,"Y","N") -> N | CH68: =IF($T$4<#REF!,"Y","N") ->  | CK68: =IF(CI68=1,VLOOKUP($T$4,#REF!,4,TRUE),0) -> 0 | CL68: =IF(CI68=1,INDEX(#REF!,MATCH($T$2,#REF!,-1)),0) -> 0 | CM68: 3-425 | CP68: =COUNTIF($CK$76:$CN$76,CQ68) -> 0 | CQ68: 3-425
AH69: 104 | AI69: 4.1 | AJ69: 5.11 | AK69: 383 | AL69: 0.21 | AN69: 69 | AO69: 11 | AP69: 6.46 | AQ69: 485 | AR69: 0.3 | AS69: 75 | AT69: 0 | AU69: 22.5 | AV69: 5.65 | AW69: 424 | AX69: 0 | AZ69: 46 | BA69: 24 | BB69: 5.6 | BC69: 420 | BD69: 0.5 | CC69: 5 | CD69: 4-325 | CE69: =-0.0183*T4+5.8075 -> 3.703 | CG69: =IF($T$2<CE69,"Y","N") -> N | CH69: =IF($T$4<AH74,"Y","N") -> Y | CI69: =IF(AND(CG69="Y",CH69="Y"),1,0) -> 0 | CK69: =IF(CI69=1,VLOOKUP($T$4,AH66:AK74,4,TRUE),0) -> 0 | CL69: =IF(CI69=1,INDEX(AK66:AK74,MATCH($T$2,AI66:AI74,-1)),0) -> 0 | CM69: 4-325 | CP69: 0 | CQ69: 4-325
AH70: 139 | AI70: 3.6 | AJ70: 5.06 | AK70: 380 | AL70: 0.25 | AN70: 92 | AO70: 10 | AP70: 6.41 | AQ70: 481 | AR70: 0.36 | AT70: 23 | AU70: 19.8 | AV70: 5.63 | AW70: 422 | AX70: 0.2 | AZ70: 58 | BA70: 20 | BB70: 5.57 | BC70: 418 | BD70: 0.52 | CC70: 1 | CD70: 6-185 | CE70: =-0.0509*T4+7.7829 -> 1.9294 | CG70: N | CH70: =IF($T$4<#REF!,"Y","N") ->  | CK70: =IF(CI70=1,VLOOKUP($T$4,#REF!,4,TRUE),0) -> 0 | CL70: =IF(CI70=1,INDEX(#REF!,MATCH($T$2,#REF!,-1)),0) -> 0 | CM70: 6-185 | CP70: 0 | CQ70: 6-185
AH71: 173 | AI71: 3 | AJ71: 4.96 | AK71: 372 | AL71: 0.26 | AN71: 116 | AO71: 8.9 | AP71: 6.26 | AQ71: 470 | AR71: 0.41 | AT71: 46 | AU71: 16.8 | AV71: 5.55 | AW71: 416 | AX71: 0.35 | AZ71: 69 | BA71: 15 | BB71: 5.27 | BC71: 395 | BD71: 0.5 | CC71: 8 | CD71: 10-230 | CE71: =-0.0615*T4+14.831 -> 7.7585 | CG71: N | CH71: =IF($T$4<AN75,"Y","N") -> Y | CI71: 0 | CK71: =IF(CI71=1,VLOOKUP($T$4,AN66:AQ75,4,TRUE),0) -> 0 | CL71: =IF(CI71=1,INDEX(AQ66:AQ75,MATCH($T$2,AO66:AO75,-1)),0) -> 0 | CM71: 10-230 | CP71: 0 | CQ71: 10-230
AH72: 208 | AI72: 2.3 | AJ72: 4.77 | AK72: 358 | AL72: 0.25 | AN72: 139 | AO72: 7.6 | AP72: 6.05 | AQ72: 454 | AR72: 0.44 | AT72: 69 | AU72: 13 | AV72: 5.28 | AW72: 396 | AX72: 0.43 | AZ72: 81 | BA72: 8.5 | BB72: 4.84 | BC72: 363 | BD72: 0.36 | CC72: 4 | CD72: 11-210 | CE72: =-0.1039*T4+16.601 -> 4.6525 | CG72: N | CH72: =IF($T$4<#REF!,"Y","N") ->  | CK72: =IF(CI72=1,VLOOKUP($T$4,#REF!,4,TRUE),0) -> 0 | CL72: =IF(CI72=1,INDEX(#REF!,MATCH($T$2,#REF!,-1)),0) -> 0 | CM72: 11-210 | CP72: 0 | CQ72: 11-210
AH73: 243 | AI73: 1.4 | AJ73: 4.42 | AK73: 332 | AL73: 0.19 | AN73: 162 | AO73: 5.5 | AP73: 6.65 | AQ73: 499 | AR73: 0.34 | AT73: 92 | AU73: 7.2 | AV73: 4.7 | AW73: 353 | AX73: 0.36 | AZ73: 92 | BA73: 0 | BB73: 4.07 | BC73: 305 | BD73: 0 | CC73: 6 | CD73: 14-160 | CE73: =-0.1608*T4+24.715 -> 6.223 | CG73: N | CH73: =IF($T$4<#REF!,"Y","N") ->  | CK73: =IF(CI73=1,VLOOKUP($T$4,#REF!,4,TRUE),0) -> 0 | CL73: =IF(CI73=1,INDEX(#REF!,MATCH($T$2,#REF!,-1)),0) -> 0 | CM73: 14-160 | CP73: 0 | CQ73: 14-160
AH74: 277 | AI74: 0 | AJ74: 3.74 | AK74: 281 | AL74: 0 | AN74: 185 | AO74: 3 | AP74: 4.97 | AQ74: 373 | AR74: 0.28 | AT74: 116 | AU74: 0 | AV74: 3.76 | AW74: 282 | AX74: 0 | AY74: 90 | AZ74: 0 | BA74: 40.5 | BB74: 5.82 | BC74: 524 | BD74: 0 | CC74: 3 | CD74: 18-160 | CE74: =-0.1905*T4+24.201 -> 2.2935 | CG74: =IF($T$2<CE74,"Y","N") -> N | CH74: =IF($T$4<AT74,"Y","N") -> Y | CI74: 0 | CK74: =IF(CI74=1,VLOOKUP($T$4,AT69:AW74,4,TRUE),0) -> 0 | CL74: =IF(CI74=1,INDEX(AW69:AW74,MATCH($T$2,AU69:AU74,-1)),0) -> 0 | CM74: 18-160 | CP74: 0 | CQ74: 18-160
AG75: 90 | AH75: 0 | AI75: 6.4 | AJ75: 6.29 | AK75: 566 | AL75: 0 | AN75: 208 | AO75: 0 | AP75: 3.97 | AQ75: 298 | AR75: 0 | AS75: 90 | AT75: 0 | AU75: 26 | AV75: 6.99 | AW75: 629 | AX75: 0 | AZ75: 12 | BA75: 39 | BB75: 5.93 | BC75: 534 | BD75: 0.16 | CC75: 2 | CD75: 30-115 | CE75: =-0.3782*T4+39.347 -> -4.146 | CG75: N | CH75: =IF($T$4<AZ73,"Y","N") -> N | CI75: 0 | CK75: =IF(CI75=1,VLOOKUP($T$4,AZ65:BC73,4,TRUE),0) -> 0 | CL75: =IF(CI75=1,INDEX(BC65:BC73,MATCH($T$2,BA65:BA73,-1)),0) -> 0 | CM75: 30-115 | CP75: 0 | CQ75: 30-115
AH76: 35 | AI76: 6 | AJ76: 6.31 | AK76: 568 | AL76: 0.07 | AM76: 90 | AN76: 0 | AO76: 15.8 | AP76: 8.08 | AQ76: 727 | AR76: 0 | AT76: 23 | AU76: 23.8 | AV76: 6.97 | AW76: 627 | AX76: 0.17 | AZ76: 23 | BA76: 37.1 | BB76: 6.29 | BC76: 566 | BD76: 0.29 | CK76: =VLOOKUP(SMALL(CK68:CK75,COUNTIF(CK68:CK75,0)+1),CK68:CM75,3,FALSE) ->  | CL76: =VLOOKUP(SMALL(CL68:CL75,COUNTIF(CL68:CL75,0)+1),CL68:CM75,2,FALSE) ->  | CN76: =IF(CI70=1,CD70,IF(CI75=1,CD75,IF(CI74=1,CD74,IF(CI72=1,CD72,IF(CI69=1,CD69,IF(CI73=1,CD73,IF(CI68=1,CD68,IF(CI71=1,CD71,"ERROR")))))))) -> ERROR | CP76: =SUM(CP68:CP75) -> 0 | CQ76: =IF(CP76>0,VLOOKUP(MAX(CP68:CP75),CP68:CQ75,2,FALSE),"None") -> None
AH77: 69 | AI77: 5.7 | AJ77: 6.32 | AK77: 569 | AL77: 0.13 | AN77: 23 | AO77: 15.1 | AP77: 8.08 | AQ77: 727 | AR77: 0.09 | AT77: 46 | AU77: 21.1 | AV77: 6.95 | AW77: 626 | AX77: 0.29 | AZ77: 35 | BA77: 35.2 | BB77: 6.57 | BC77: 591 | BD77: 0.39
AH78: 104 | AI78: 5.3 | AJ78: 6.33 | AK78: 570 | AL78: 0.18 | AN78: 46 | AO78: 14.4 | AP78: 8.1 | AQ78: 729 | AR78: 0.17 | AT78: 69 | AU78: 18.1 | AV78: 6.81 | AW78: 613 | AX78: 0.39 | AZ78: 46 | BA78: 33 | BB78: 6.79 | BC78: 611 | BD78: 0.47 | CK78: TDH | CL78: gpm
AH79: 139 | AI79: 4.9 | AJ79: 6.3 | AK79: 567 | AL79: 0.23 | AN79: 69 | AO79: 13.6 | AP79: 8.08 | AQ79: 727 | AR79: 0.24 | AT79: 92 | AU79: 14.8 | AV79: 6.55 | AW79: 590 | AX79: 0.44 | AZ79: 58 | BA79: 30 | BB79: 6.96 | BC79: 626 | BD79: 0.52 | CH79: 90 | CI79: Volts | CK79: Vlookup | CL79: Match | CN79: Order
AH80: 173 | AI80: 4.5 | AJ80: 6.27 | AK80: 564 | AL80: 0.26 | AN80: 92 | AO80: 12.8 | AP80: 8.01 | AQ80: 721 | AR80: 0.31 | AT80: 116 | AU80: 10.9 | AV80: 6.11 | AW80: 550 | AX80: 0.43 | AZ80: 69 | BA80: 26 | BB80: 7.04 | BC80: 634 | BD80: 0.54 | CC80: 7 | CD80: 3-425 | CE80: =-0.0117*T4+6.4308 -> 5.0853 | CG80: =IF($T$2<CE80,"Y","N") -> N | CH80: =IF($T$4<#REF!,"Y","N") ->  | CK80: =IF(CI80=1,VLOOKUP($T$4,#REF!,4,TRUE),0) -> 0 | CL80: =IF(CI80=1,INDEX(#REF!,MATCH($T$2,#REF!,-1)),0) -> 0 | CM80: 3-425 | CP80: =COUNTIF($CK$88:$CN$88,CQ80) -> 0 | CQ80: 3-425
AH81: 208 | AI81: 4 | AJ81: 6.2 | AK81: 558 | AL81: 0.28 | AN81: 116 | AO81: 12 | AP81: 7.97 | AQ81: 717 | AR81: 0.36 | AT81: 139 | AU81: 6 | AV81: 5.43 | AW81: 589 | AX81: 0.32 | AZ81: 81 | BA81: 22 | BB81: 6.92 | BC81: 623 | BD81: 0.54 | CC81: 2 | CD81: 4-325 | CE81: =-0.0152*T4+6.8128 -> 5.0648 | CG81: =IF($T$2<CE81,"Y","N") -> N | CH81: =IF($T$4<AH87,"Y","N") -> Y | CI81: =IF(AND(CG81="Y",CH81="Y"),1,0) -> 0 | CK81: =IF(CI81=1,VLOOKUP($T$4,AH75:AK87,4,TRUE),0) -> 0 | CL81: =IF(CI81=1,INDEX(AK75:AK87,MATCH($T$2,AI75:AI87,-1)),0) -> 0 | CM81: 4-325 | CP81: 0 | CQ81: 4-325
AH82: 243 | AI82: 3.4 | AJ82: 6.09 | AK82: 548 | AL82: 0.28 | AN82: 139 | AO82: 11 | AP82: 7.84 | AQ82: 706 | AR82: 0.41 | AT82: 162 | AU82: 0 | AV82: 4.66 | AW82: 419 | AX82: 0 | AZ82: 92 | BA82: 17 | BB82: 6.62 | BC82: 596 | BD82: 0.5 | CC82: 1 | CD82: 6-185 | CE82: =-0.0452*T4+9.3164 -> 4.1184 | CG82: N | CH82: =IF($T$4<#REF!,"Y","N") ->  | CK82: =IF(CI82=1,VLOOKUP($T$4,#REF!,4,TRUE),0) -> 0 | CL82: =IF(CI82=1,INDEX(#REF!,MATCH($T$2,#REF!,-1)),0) -> 0 | CM82: 6-185 | CP82: 0 | CQ82: 6-185
AH83: 277 | AI83: 2.8 | AJ83: 5.92 | AK83: 533 | AL83: 0.28 | AN83: 162 | AO83: 9.9 | AP83: 7.68 | AQ83: 691 | AR83: 0.44 | AS83: 105 | AT83: 0 | AU83: 29 | AV83: 8.38 | AW83: 880 | AX83: 0 | AZ83: 104 | BA83: 11 | BB83: 6.25 | BC83: 563 | BD83: 0.38 | CC83: 8 | CD83: 10-230 | CE83: =-0.0526*T4+17.19 -> 11.141 | CG83: =IF($T$2<CE83,"Y","N") -> Y | CH83: =IF($T$4<AN88,"Y","N") -> Y | CI83: 1 | CK83: =IF(CI83=1,VLOOKUP($T$4,AN76:AQ88,4,TRUE),0) -> 721 | CL83: =IF(CI83=1,INDEX(AQ76:AQ88,MATCH($T$2,AO76:AO88,-1)),0) -> 672 | CM83: 10-230 | CP83: 0 | CQ83: 10-230
AH84: 312 | AI84: 2.2 | AJ84: 5.64 | AK84: 508 | AL84: 0.25 | AN84: 185 | AO84: 8.6 | AP84: 7.47 | AQ84: 672 | AR84: 0.45 | AT84: 23 | AU84: 27 | AV84: 8.35 | AW84: 877 | AX84: 0.13 | AZ84: 116 | BA84: 5 | BB84: 5.65 | BC84: 509 | BD84: 0.21 | CC84: 5 | CD84: 11-210 | CE84: =-0.0882*T4+19.534 -> 9.391 | CG84: Y | CH84: =IF($T$4<#REF!,"Y","N") ->  | CK84: =IF(CI84=1,VLOOKUP($T$4,#REF!,4,TRUE),0) -> 0 | CL84: =IF(CI84=1,INDEX(#REF!,MATCH($T$2,#REF!,-1)),0) -> 0 | CM84: 11-210 | CP84: 0 | CQ84: 11-210
AH85: 347 | AI85: 1.5 | AJ85: 5.25 | AK85: 473 | AL85: 0.21 | AN85: 208 | AO85: 7.1 | AP85: 7.17 | AQ85: 645 | AR85: 0.43 | AT85: 46 | AU85: 25 | AV85: 8.32 | AW85: 874 | AX85: 0.25 | AZ85: 127 | BA85: 0 | BB85: 5.1 | BC85: 459 | BD85: 0 | CC85: 6 | CD85: 14-160 | CE85: =-0.1394*T4+28.957 -> 12.926 | CG85: Y | CH85: =IF($T$4<#REF!,"Y","N") ->  | CK85: =IF(CI85=1,VLOOKUP($T$4,#REF!,4,TRUE),0) -> 0 | CL85: =IF(CI85=1,INDEX(#REF!,MATCH($T$2,#REF!,-1)),0) -> 0 | CM85: 14-160 | CP85: 0 | CQ85: 14-160
AH86: 381 | AI86: 0.8 | AJ86: 4.72 | AK86: 425 | AL86: 0.14 | AN86: 231 | AO86: 5.4 | AP86: 6.71 | AQ86: 604 | AR86: 0.39 | AT86: 69 | AU86: 22.6 | AV86: 8.24 | AW86: 865 | AX86: 0.34 | AY86: 105 | AZ86: 0 | BA86: 45.5 | BB86: 7.05 | BC86: 740 | BD86: 0 | CC86: 4 | CD86: 18-160 | CE86: =-0.1566*T4+27.756 -> 9.747 | CG86: Y | CH86: =IF($T$4<AT82,"Y","N") -> Y | CI86: 1 | CK86: =IF(CI86=1,VLOOKUP($T$4,AT75:AW82,4,TRUE),0) -> 590 | CL86: =IF(CI86=1,INDEX(AW75:AW82,MATCH($T$2,AU75:AU82,-1)),0) -> 550 | CM86: 18-160 | CP86: 3 | CQ86: 18-160
AH87: 416 | AI87: 0 | AJ87: 4.51 | AK87: 406 | AL87: 0 | AN87: 254 | AO87: 3 | AP87: 5.92 | AQ87: 533 | AR87: 0.27 | AT87: 92 | AU87: 20 | AV87: 8.08 | AW87: 848 | AX87: 0.41 | AZ87: 12 | BA87: 44.1 | BB87: 7.15 | BC87: 751 | BD87: 0.13 | CC87: 3 | CD87: 30-115 | CE87: =-0.3219*T4+45.118 -> 8.0995 | CG87: N | CH87: =IF($T$4<AZ85,"Y","N") -> Y | CI87: =IF(AND(CG87="Y",CH87="Y"),1,0) -> 0 | CK87: =IF(CI87=1,VLOOKUP($T$4,AZ74:BC85,4,TRUE),0) -> 0 | CL87: =IF(CI87=1,INDEX(BC74:BC85,MATCH($T$2,BA74:BA85,-1)),0) -> 0 | CM87: 30-115 | CP87: 0 | CQ87: 30-115
AG88: 105 | AH88: 0 | AI88: 7.2 | AJ88: 7.45 | AK88: 782 | AL88: 0 | AN88: 277 | AO88: 0 | AP88: 4.84 | AQ88: 436 | AR88: 0 | AT88: 116 | AU88: 17 | AV88: 7.82 | AW88: 821 | AX88: 0.45 | AZ88: 23 | BA88: 42.6 | BB88: 7.41 | BC88: 778 | BD88: 0.24 | CK88: =VLOOKUP(SMALL(CK80:CK87,COUNTIF(CK80:CK87,0)+1),CK80:CM87,3,FALSE) -> 18-160 | CL88: =VLOOKUP(SMALL(CL80:CL87,COUNTIF(CL80:CL87,0)+1),CL80:CM87,2,FALSE) -> 18-160 | CN88: =IF(CI82=1,CD82,IF(CI81=1,CD81,IF(CI87=1,CD87,IF(CI86=1,CD86,IF(CI84=1,CD84,IF(CI85=1,CD85,IF(CI80=1,CD80,IF(CI83=1,CD83,"ERROR")))))))) -> 18-160 | CP88: =SUM(CP80:CP87) -> 3 | CQ88: =IF(CP88>0,VLOOKUP(MAX(CP80:CP87),CP80:CQ87,2,FALSE),"None") -> 18-160
AH89: 35 | AI89: 6.9 | AJ89: 7.53 | AK89: 791 | AL89: 0.06 | AM89: 105 | AN89: 0 | AO89: 18.9 | AP89: 9.64 | AQ89: 1012 | AR89: 0 | AT89: 139 | AU89: 13.6 | AV89: 7.46 | AW89: 783 | AX89: 0.45 | AZ89: 35 | BA89: 40.9 | BB89: 7.7 | BC89: 809 | BD89: 0.33
AH90: 69 | AI90: 6.6 | AJ90: 7.53 | AK90: 791 | AL90: 0.11 | AN90: 23 | AO90: 18.2 | AP90: 9.65 | AQ90: 1013 | AR90: 0.08 | AT90: 162 | AU90: 9 | AV90: 6.89 | AW90: 723 | AX90: 0.38 | AZ90: 46 | BA90: 38.9 | BB90: 7.98 | BC90: 838 | BD90: 0.4 | CK90: TDH | CL90: gpm
AH91: 104 | AI91: 6.3 | AJ91: 7.53 | AK91: 791 | AL91: 0.15 | AN91: 46 | AO91: 17.5 | AP91: 9.67 | AQ91: 1015 | AR91: 0.15 | AT91: 185 | AU91: 3.3 | AV91: 6.15 | AW91: 646 | AX91: 0.18 | AZ91: 58 | BA91: 36.5 | BB91: 8.18 | BC91: 859 | BD91: 0.46 | CH91: 105 | CI91: Volts | CK91: Vlookup | CL91: Match | CN91: Order
AH92: 139 | AI92: 5.9 | AJ92: 7.52 | AK92: 790 | AL92: 0.2 | AN92: 69 | AO92: 16.8 | AP92: 9.69 | AQ92: 1017 | AR92: 0.22 | AT92: 208 | AU92: 0 | AV92: 5.55 | AW92: 583 | AX92: 0 | AZ92: 69 | BA92: 34 | BB92: 8.34 | BC92: 876 | BD92: 0.51 | CC92: 7 | CD92: 3-425 | CE92: =-0.0108*T4+7.4022 -> 6.1602 | CG92: =IF($T$2<CE92,"Y","N") -> N | CH92: =IF($T$4<#REF!,"Y","N") ->  | CK92: =IF(CI92=1,VLOOKUP($T$4,#REF!,4,TRUE),0) -> 0 | CL92: =IF(CI92=1,INDEX(#REF!,MATCH($T$2,#REF!,-1)),0) -> 0 | CM92: 3-425 | CP92: =COUNTIF($CK$100:$CN$100,CQ92) -> 0 | CQ92: 3-425
AH93: 173 | AI93: 5.5 | AJ93: 7.5 | AK93: 788 | AL93: 0.23 | AN93: 92 | AO93: 16 | AP93: 9.68 | AQ93: 1016 | AR93: 0.27 | AS93: 120 | AT93: 0 | AU93: 33 | AV93: 9.72 | AW93: 1166 | AX93: 0 | AZ93: 81 | BA93: 31 | BB93: 8.46 | BC93: 888 | BD93: 0.53 | CC93: 4 | CD93: 4-325 | CE93: =-0.0135*T4+7.6821 -> 6.1296 | CG93: =IF($T$2<CE93,"Y","N") -> N | CH93: =IF($T$4<AH103,"Y","N") -> Y | CI93: =IF(AND(CG93="Y",CH93="Y"),1,0) -> 0 | CK93: =IF(CI93=1,VLOOKUP($T$4,AH88:AK103,4,TRUE),0) -> 0 | CL93: =IF(CI93=1,INDEX(AK88:AK103,MATCH($T$2,AI88:AI103,-1)),0) -> 0 | CM93: 4-325 | CP93: 0 | CQ93: 4-325
AH94: 208 | AI94: 5.1 | AJ94: 7.47 | AK94: 784 | AL94: 0.25 | AN94: 116 | AO94: 15.1 | AP94: 9.62 | AQ94: 1010 | AR94: 0.33 | AT94: 23 | AU94: 31 | AV94: 9.7 | AW94: 1164 | AX94: 0.12 | AZ94: 92 | BA94: 27.5 | BB94: 8.48 | BC94: 890 | BD94: 0.54 | CC94: 1 | CD94: 6-185 | CE94: =-0.042*T4+10.961 -> 6.131 | CG94: N | CH94: =IF($T$4<#REF!,"Y","N") ->  | CK94: =IF(CI94=1,VLOOKUP($T$4,#REF!,4,TRUE),0) -> 0 | CL94: =IF(CI94=1,INDEX(#REF!,MATCH($T$2,#REF!,-1)),0) -> 0 | CM94: 6-185 | CP94: 0 | CQ94: 6-185
AH95: 243 | AI95: 4.7 | AJ95: 7.43 | AK95: 780 | AL95: 0.28 | AN95: 139 | AO95: 14.2 | AP95: 9.56 | AQ95: 1004 | AR95: 0.41 | AT95: 46 | AU95: 29 | AV95: 9.68 | AW95: 1162 | AX95: 0.22 | AZ95: 104 | BA95: 23.5 | BB95: 8.34 | BC95: 876 | BD95: 0.53 | CC95: 8 | CD95: 10-230 | CE95: =-0.0493*T4+20.372 -> 14.7025 | CG95: Y | CH95: =IF($T$4<AN105,"Y","N") -> Y | CI95: 1 | CK95: =IF(CI95=1,VLOOKUP($T$4,AN89:AQ105,4,TRUE),0) -> 1016 | CL95: =IF(CI95=1,INDEX(AQ89:AQ105,MATCH($T$2,AO89:AO105,-1)),0) -> 921 | CM95: 10-230 | CP95: 0 | CQ95: 10-230
AH96: 277 | AI96: 4.3 | AJ96: 7.35 | AK96: 772 | AL96: 0.29 | AN96: 162 | AO96: 13.3 | AP96: 9.48 | AQ96: 995 | AR96: 0.44 | AT96: 69 | AU96: 27 | AV96: 9.66 | AW96: 1159 | AX96: 0.3 | AZ96: 116 | BA96: 19.5 | BB96: 8.06 | BC96: 846 | BD96: 0.5 | CC96: 5 | CD96: 11-210 | CE96: =-0.076*T4+21.693 -> 12.953 | CG96: Y | CH96: =IF($T$4<#REF!,"Y","N") ->  | CK96: =IF(CI96=1,VLOOKUP($T$4,#REF!,4,TRUE),0) -> 0 | CL96: =IF(CI96=1,INDEX(#REF!,MATCH($T$2,#REF!,-1)),0) -> 0 | CM96: 11-210 | CP96: 0 | CQ96: 11-210
AH97: 312 | AI97: 3.8 | AJ97: 7.23 | AK97: 759 | AL97: 0.29 | AN97: 185 | AO97: 12.3 | AP97: 9.37 | AQ97: 984 | AR97: 0.45 | AT97: 92 | AU97: 25 | AV97: 9.55 | AW97: 1146 | AX97: 0.38 | AZ97: 127 | BA97: 15 | BB97: 7.73 | BC97: 812 | BD97: 0.44 | CC97: 6 | CD97: 14-160 | CE97: =-0.1225*T4+32.103 -> 18.0155 | CG97: Y | CH97: =IF($T$4<#REF!,"Y","N") ->  | CK97: =IF(CI97=1,VLOOKUP($T$4,#REF!,4,TRUE),0) -> 0 | CL97: =IF(CI97=1,INDEX(#REF!,MATCH($T$2,#REF!,-1)),0) -> 0 | CM97: 14-160 | CP97: 0 | CQ97: 14-160
AH98: 347 | AI98: 3.3 | AJ98: 7.08 | AK98: 743 | AL98: 0.29 | AN98: 208 | AO98: 11.1 | AP98: 9.21 | AQ98: 967 | AR98: 0.46 | AT98: 116 | AU98: 22.7 | AV98: 9.38 | AW98: 1126 | AX98: 0.44 | AZ98: 139 | BA98: 10 | BB98: 7.35 | BC98: 772 | BD98: 0.34 | CC98: 3 | CD98: 18-160 | CE98: =-0.1405*T4+31.266 -> 15.1085 | CG98: Y | CH98: =IF($T$4<AT92,"Y","N") -> Y | CI98: 1 | CK98: =IF(CI98=1,VLOOKUP($T$4,AT83:AW92,4,TRUE),0) -> 848 | CL98: =IF(CI98=1,INDEX(AW83:AW92,MATCH($T$2,AU83:AU92,-1)),0) -> 723 | CM98: 18-160 | CP98: 2 | CQ98: 18-160
AH99: 381 | AI99: 2.8 | AJ99: 6.87 | AK99: 721 | AL99: 0.28 | AN99: 231 | AO99: 10 | AP99: 9 | AQ99: 945 | AR99: 0.46 | AT99: 139 | AU99: 20 | AV99: 9.13 | AW99: 1096 | AX99: 0.48 | AZ99: 150 | BA99: 5 | BB99: 6.69 | BC99: 702 | BD99: 0.2 | CC99: 2 | CD99: 30-115 | CE99: =-0.2815*T4+50.383 -> 18.0105 | CG99: Y | CH99: =IF($T$4<AZ100,"Y","N") -> Y | CI99: 1 | CK99: =IF(CI99=1,VLOOKUP($T$4,AZ86:BC100,4,TRUE),0) -> 876 | CL99: =IF(CI99=1,INDEX(BC86:BC100,MATCH($T$2,BA86:BA100,-1)),0) -> 772 | CM99: 30-115 | CP99: 1 | CQ99: 30-115
AH100: 416 | AI100: 2.2 | AJ100: 6.59 | AK100: 692 | AL100: 0.25 | AN100: 254 | AO100: 8.8 | AP100: 8.77 | AQ100: 921 | AR100: 0.46 | AT100: 162 | AU100: 16.8 | AV100: 8.8 | AW100: 1056 | AX100: 0.48 | AZ100: 162 | BA100: 0 | BB100: 6.16 | BC100: 647 | BD100: 0 | CK100: =VLOOKUP(SMALL(CK92:CK99,COUNTIF(CK92:CK99,0)+1),CK92:CM99,3,FALSE) -> 18-160 | CL100: =VLOOKUP(SMALL(CL92:CL99,COUNTIF(CL92:CL99,0)+1),CL92:CM99,2,FALSE) -> 18-160 | CN100: =IF(CI94=1,CD94,IF(CI99=1,CD99,IF(CI98=1,CD98,IF(CI93=1,CD93,IF(CI96=1,CD96,IF(CI97=1,CD97,IF(CI92=1,CD92,IF(CI95=1,CD95,"ERROR")))))))) -> 30-115 | CP100: =SUM(CP92:CP99) -> 3 | CQ100: =IF(CP100>0,VLOOKUP(MAX(CP92:CP99),CP92:CQ99,2,FALSE),"None") -> 18-160
AH101: 450 | AI101: 1.5 | AJ101: 6.22 | AK101: 953 | AL101: 0.19 | AN101: 277 | AO101: 7.4 | AP101: 8.47 | AQ101: 889 | AR101: 0.43 | AT101: 185 | AU101: 13 | AV101: 8.33 | AW101: 1000 | AX101: 0.45 | AY101: 120 | AZ101: 0 | BA101: 51.4 | BB101: 8.22 | BC101: 986 | BD101: 0
AH102: 485 | AI102: 0.8 | AJ102: 5.76 | AK102: 605 | AL102: 0.12 | AN102: 300 | AO102: 5.8 | AP102: 8.02 | AQ102: 842 | AR102: 0.39 | AT102: 208 | AU102: 8.1 | AV102: 7.87 | AW102: 944 | AX102: 0.34 | AZ102: 12 | BA102: 50 | BB102: 8.35 | BC102: 1002 | BD102: 0.11 | CK102: TDH | CL102: gpm
AH103: 520 | AI103: 0 | AJ103: 5.34 | AK103: 561 | AL103: 0 | AN103: 323 | AO103: 4 | AP103: 7.34 | AQ103: 771 | AR103: 0.32 | AT103: 231 | AU103: 2.8 | AV103: 6.97 | AW103: 836 | AX103: 0.15 | AZ103: 23 | BA103: 48.5 | BB103: 8.61 | BC103: 1033 | BD103: 0.2 | CH103: 120 | CI103: Volts | CK103: Vlookup | CL103: Match | CN103: Order
AG104: 120 | AH104: 0 | AI104: 8.2 | AJ104: 8.7 | AK104: 1044 | AL104: 0 | AN104: 347 | AO104: 1.9 | AP104: 6.52 | AQ104: 685 | AR104: 0.18 | AT104: 254 | AU104: 0 | AV104: 6.44 | AW104: 773 | AX104: 0 | AZ104: 35 | BA104: 46.7 | BB104: 8.87 | BC104: 1064 | BD104: 0.29 | CC104: 5 | CD104: 4-325 | CE104: =-0.0126*T4+8.6897 -> 7.2407 | CG104: =IF($T$2<CE104,"Y","N") -> N | CH104: =IF($T$4<AH122,"Y","N") -> Y | CI104: =IF(AND(CG104="Y",CH104="Y"),1,0) -> 0 | CK104: =IF(CI104=1,VLOOKUP($T$4,AH104:AK122,4,TRUE),0) -> 0 | CL104: =IF(CI104=1,INDEX(AK104:AK122,MATCH($T$2,AI104:AI122,-1)),0) -> 0 | CM104: 4-325 | CP104: =COUNTIF($CK$109:$CN$109,CQ104) -> 0 | CQ104: 4-325
AH105: 35 | AI105: 7.9 | AJ105: 8.69 | AK105: 1043 | AL105: 0.05 | AN105: 370 | AO105: 0 | AP105: 5.77 | AQ105: 606 | AR105: 0 | AZ105: 46 | BA105: 45 | BB105: 9.15 | BC105: 1098 | BD105: 0.36 | CC105: 1 | CD105: 6-185 | CE105: =-0.0372*T4+12.279 -> 8.001 | CG105: =IF($T$2<CE105,"Y","N") -> N | CH105: =IF($T$4<#REF!,"Y","N") ->  | CK105: =IF(CI105=1,VLOOKUP($T$4,#REF!,4,TRUE),0) -> 0 | CL105: =IF(CI105=1,INDEX(#REF!,MATCH($T$2,#REF!,-1)),0) -> 0 | CM105: 6-185 | CP105: =COUNTIF($CK$109:$CN$109,CQ105) -> 0 | CQ105: 6-185
AH106: 69 | AI106: 7.6 | AJ106: 8.7 | AK106: 1044 | AL106: 0.09 | AZ106: 58 | BA106: 43 | BB106: 9.4 | BC106: 1128 | BD106: 0.41 | CC106: 4 | CD106: 11-210 | CE106: =-0.0684*T4+24.16 -> 16.294 | CG106: Y | CH106: =IF($T$4<#REF!,"Y","N") ->  | CK106: =IF(CI106=1,VLOOKUP($T$4,#REF!,4,TRUE),0) -> 0 | CL106: =IF(CI106=1,INDEX(#REF!,MATCH($T$2,#REF!,-1)),0) -> 0 | CM106: 11-210 | CP106: =COUNTIF($CK$109:$CN$109,CQ106) -> 0 | CQ106: 11-210
AH107: 104 | AI107: 7.3 | AJ107: 8.71 | AK107: 1045 | AL107: 0.14 | AZ107: 69 | BA107: 41 | BB107: 9.62 | BC107: 1154 | BD107: 0.46 | CC107: 3 | CD107: 18-160 | CE107: =-0.1301*T4+35.563 -> 20.6015 | CG107: Y | CH107: =IF($T$4<AT104,"Y","N") -> Y | CI107: =IF(AND(CG107="Y",CH107="Y"),1,0) -> 1 | CK107: =IF(CI107=1,VLOOKUP($T$4,AT93:AW104,4,TRUE),0) -> 1146 | CL107: =IF(CI107=1,INDEX(AW93:AW104,MATCH($T$2,AU93:AU104,-1)),0) -> 1000 | CM107: 18-160 | CP107: =COUNTIF($CK$109:$CN$109,CQ107) -> 2 | CQ107: 18-160
AH108: 139 | AI108: 6.9 | AJ108: 8.72 | AK108: 1046 | AL108: 0.17 | AZ108: 81 | BA108: 38.6 | BB108: 9.77 | BC108: 1172 | BD108: 0.5 | CC108: 2 | CD108: 30-115 | CE108: =-0.2554*T4+56.357 -> 26.986 | CG108: Y | CH108: =IF($T$4<AZ118,"Y","N") -> Y | CI108: =IF(AND(CG108="Y",CH108="Y"),1,0) -> 1 | CK108: =IF(CI108=1,VLOOKUP($T$4,AZ101:BC118,4,TRUE),0) -> 1200 | CL108: =IF(CI108=1,INDEX(BC101:BC118,MATCH($T$2,BA101:BA118,-1)),0) -> 1027 | CM108: 30-115 | CP108: =COUNTIF($CK$109:$CN$109,CQ108) -> 1 | CQ108: 30-115
AH109: 173 | AI109: 6.6 | AJ109: 8.71 | AK109: 1045 | AL109: 0.2 | AZ109: 92 | BA109: 36 | BB109: 9.91 | BC109: 1189 | BD109: 0.53 | CK109: =VLOOKUP(SMALL(CK104:CK108,COUNTIF(CK104:CK108,0)+1),CK104:CM108,3,FALSE) -> 18-160 | CL109: =VLOOKUP(SMALL(CL104:CL108,COUNTIF(CL104:CL108,0)+1),CL104:CM108,2,FALSE) -> 18-160 | CN109: =IF(CI105=1,CD105,IF(CI108=1,CD108,IF(CI107=1,CD107,IF(CI106=1,CD106,IF(CI104=1,CD104,"ERROR"))))) -> 30-115 | CP109: =SUM(CP104:CP108) -> 3 | CQ109: =IF(CP109>0,VLOOKUP(MAX(CP104:CP108),CP104:CQ108,2,FALSE),"None") -> 18-160
AH110: 208 | AI110: 6.2 | AJ110: 8.7 | AK110: 1044 | AL110: 0.23 | AZ110: 104 | BA110: 33 | BB110: 10 | BC110: 1200 | BD110: 0.54
AH111: 243 | AI111: 5.8 | AJ111: 8.68 | AK111: 1042 | AL111: 0.26 | AZ111: 116 | BA111: 30 | BB111: 9.98 | BC111: 1198 | BD111: 0.55
AH112: 277 | AI112: 5.5 | AJ112: 8.65 | AK112: 1038 | AL112: 0.28 | AZ112: 127 | BA112: 26.4 | BB112: 9.83 | BC112: 1180 | BD112: 0.54
AH113: 312 | AI113: 5.1 | AJ113: 8.6 | AK113: 1032 | AL113: 0.29 | AZ113: 139 | BA113: 23 | BB113: 9.59 | BC113: 1151 | BD113: 0.52
AH114: 347 | AI114: 4.7 | AJ114: 8.51 | AK114: 1021 | AL114: 0.3 | AZ114: 150 | BA114: 19 | BB114: 9.27 | BC114: 1112 | BD114: 0.48
AH115: 381 | AI115: 4.3 | AJ115: 8.41 | AK115: 1009 | AL115: 0.3 | AZ115: 162 | BA115: 15 | BB115: 8.95 | BC115: 1074 | BD115: 0.43
AH116: 416 | AI116: 3.8 | AJ116: 8.26 | AK116: 991 | AL116: 0.3 | AZ116: 173 | BA116: 10.7 | BB116: 8.56 | BC116: 1027 | BD116: 0.34
AH117: 450 | AI117: 3.3 | AJ117: 8.09 | AK117: 971 | AL117: 0.29 | AZ117: 185 | BA117: 5.5 | BB117: 7.95 | BC117: 954 | BD117: 0.2
AH118: 485 | AI118: 2.8 | AJ118: 7.89 | AK118: 947 | AL118: 0.27 | AZ118: 196 | BA118: 0 | BB118: 7.31 | BC118: 877 | BD118: 0
AH119: 520 | AI119: 2.2 | AJ119: 7.59 | AK119: 911 | AL119: 0.23
AH120: 554 | AI120: 1.5 | AJ120: 7.24 | AK120: 869 | AL120: 0.18
AH121: 589 | AI121: 0.8 | AJ121: 6.85 | AK121: 822 | AL121: 0.11
AH122: 624 | AI122: 0 | AJ122: 6.4 | AK122: 768 | AL122: 0
A180: The SDS series pumps may not suitable for your application due to a higher flow rate (GPM) or TDH than the pumps can achive! SCS type pumps might be tried.
A181: The SDS series pumps listed below may not be suitable for your application due to a higher required Wattage power. SCS type pumps might be tried.
A182: The SCS series may not be suitable due to higher required flow rates(GPM) or TDH or power. Try another type.
A184: The pump selected does not work at these requirements!!
A185: The voltage selected does not satisfy the pump requirements!!
A186: Check Power Requirements!!

Sheet Array Sizing
A1: Sizing the PV Array
AM2: Wattage | AN2: Column | AR2: 1
A3: The purpose of this sheet is to calculate the size of the array needed for your pump requirements (see box to right). You should choose a PV module size (50-315W) from the sample list of ten below. The (most efficient) recommended choice is shown at the right bottom of the sheet. | AL3: Smallest | AM3: =SMALL($V$26:$AK$26,1) -> 4.0011 | AN3: =MATCH(SMALL($V$26:$AK$26,1),$V$26:$AK$26,0) -> 11 | AO3: =IFERROR(INDEX($V$12:$AK$12,AN3),0) -> 0 | AQ3: =IF(AO3>0,INDEX($V$27:$AK$27,AN3),0) -> 0 | AR3: 2
G4: Peak Panel Wattage | H4: ='Pump Selection'!T18 -> 520 | I4: W | Q4: Pump Requirements | AM4: =SMALL($V$26:$AK$26,2) -> 9.0003 | AN4: =MATCH(SMALL($V$26:$AK$26,2),$V$26:$AK$26,0) -> 3 | AO4: =IFERROR(INDEX($V$12:$AK$12,AN4),0) -> 0 | AQ4: =IF(AO4>0,INDEX($V$27:$AK$27,AN4),0) -> 0 | AR4: 3
Q5: Voltage | R5: =H6 -> 75 | S5: =R5 -> 75 | AM5: =SMALL($V$26:$AK$26,3) -> 14.0004 | AN5: =MATCH(SMALL($V$26:$AK$26,3),$V$26:$AK$26,0) -> 4 | AO5: 4v1c | AQ5: 5 | AR5: 4
G6: Motor Voltage | H6: ='Pump Selection'!T17 -> 75 | I6: V | Q6: Current | R6: =H4/H6 -> 6.933333333 | S6: =R6/0.8 -> 8.666666667 | AM6: =SMALL($V$26:$AK$26,4) -> 14.0007 | AN6: =MATCH(SMALL($V$26:$AK$26,4),$V$26:$AK$26,0) -> 7 | AO6: =IFERROR(INDEX($V$12:$AK$12,AN6),0) -> 0 | AQ6: 0 | AR6: 5
Q7: Power | R7: =H4 -> 520 | S7: =R7/0.8 -> 650 | AM7: =SMALL($V$26:$AK$26,5) -> 24.0006 | AN7: =MATCH(SMALL($V$26:$AK$26,5),$V$26:$AK$26,0) -> 6 | AO7: =IFERROR(INDEX($V$12:$AK$12,AN7),0) -> 0 | AQ7: 0 | AR7: 6
A8: NOTE: Modules in series (a string) give the required voltage, and the modules in parallel will achieve the power required by increasing the total amount of current. | Q8: Real Power | R8: =H4 -> 520 | S8: =R8*1.05 -> 546 | AM8: =SMALL($V$26:$AK$26,6) -> 39.0009 | AN8: =MATCH(SMALL($V$26:$AK$26,6),$V$26:$AK$26,0) -> 9 | AO8: 0 | AQ8: 0 | AR8: 7
AM9: =SMALL($V$26:$AK$26,7) -> 54.0012 | AN9: =MATCH(SMALL($V$26:$AK$26,7),$V$26:$AK$26,0) -> 12 | AO9: 4v3c | AQ9: 1 | AR9: 8
A10: ============================================================================================== | AM10: =SMALL($V$26:$AK$26,8) -> 84.0002 | AN10: =MATCH(SMALL($V$26:$AK$26,8),$V$26:$AK$26,0) -> 2 | AO10: 2v1c | AQ10: 10 | AR10: 9
A11: Step 10: Enter your choice from the table below for a solar panel size to use (1-10) : | I11: 5 | AM11: =SMALL($V$26:$AK$26,9) -> 94.0008 | AN11: =MATCH(SMALL($V$26:$AK$26,9),$V$26:$AK$26,0) -> 8 | AO11: 4v2c | AQ11: 3 | AR11: 10
A12: PV module choices | E12: Sizes are inches | V12: =IF(AND((((INDEX($C$14:$C$23,V27)))<($S$5+$AN$25)),((INDEX($C$14:$C$23,V27))>($S$5-$AN$25))),"1v1c",IF(AND((((INDEX(D14:D23,V27)))<(S6+AN26)),((INDEX(D14:D23,V27))>(S6-AN26))),"1c1v",0)) ->  | W12: =IF(AND((((INDEX(C14:C23,W27))*2)<(S5+AN25)),((INDEX(C14:C23,W27)*2)>(S5-AN25))),"2v1c",IF(AND((((INDEX(D14:D23,W27))*2)<(S6+AN26)),((INDEX(D14:D23,W27)*2)>(S6-AN26))),"2c1v",0)) -> 2v1c | X12: =IF(AND((((INDEX(C14:C23,X27))*3)<(S5+AN25)),((INDEX(C14:C23,X27)*3)>(S5-AN25))),"3v1c",IF(AND((((INDEX(D14:D23,X27))*3)<(S6+AN26)),((INDEX(D14:D23,X27)*3)>(S6-AN26))),"3c1v",0)) -> 0 | Y12: =IF(AND((((INDEX(C14:C23,Y27))*2)<(S5+AN25)),((INDEX(C14:C23,Y27)*2)>(S5-AN25))),"2v2c",IF(AND((((INDEX(D14:D23,Y27))*2)<(S6+AN26)),((INDEX(D14:D23,Y27)*2)>(S6-AN26))),"2c2v",IF(AND((((INDEX(C14:C23,Y27))*4)<(S5+AN25)),((INDEX(C14:C23,Y27)*4)>(S5-AN25))),"4v1c",IF(AND((((INDEX(D14:D23,Y27))*4)<(S6+AN26)),((INDEX(D14:D23,Y27)*4)>(S6-AN26))),"4c1v",0)))) -> 4v1c | Z12: =IF(AND((((INDEX(C14:C23,Z27))*5)<(S5+AN25)),((INDEX(C14:C23,Z27)*5)>(S5-AN25))),"5v1c",IF(AND((((INDEX(D14:D23,Z27))*5)<(S6+AN26)),((INDEX(D14:D23,Z27)*5)>(S6-AN26))),"5c1v",0)) -> 0 | AA12: =IF(AND((((INDEX(C14:C23,AA27))*2)<(S5+AN25)),((INDEX(C14:C23,AA27)*2)>(S5-AN25))),"2v3c",IF(AND((((INDEX(D14:D23,AA27))*2)<(S6+AN26)),((INDEX(D14:D23,AA27)*2)>(S6-AN26))),"2c3v",IF(AND((((INDEX(C14:C23,AA27))*3)<(S5+AN25)),((INDEX(C14:C23,AA27)*3)>(S5-AN25))),"3v2c",IF(AND((((INDEX(D14:D23,AA27))*3)<(S6+AN26)),((INDEX(D14:D23,AA27)*3)>(S6-AN26))),"3c2v",0)))) -> 0 | AB12: =IF(AND((((INDEX(C14:C23,AB27))*7)<(S5+AN25)),((INDEX(C14:C23,AB27)*7)>(S5-AN25))),"7v1c",IF(AND((((INDEX(D14:D23,AB27))*7)<(S6+AN26)),((INDEX(D14:D23,AB27)*7)>(S6-AN26))),"7c1v",0)) ->  | AC12: =IF(AND((((INDEX(C14:C23,AC27))*4)<(S5+AN25)),((INDEX(C14:C23,AC27)*4)>(S5-AN25))),"4v2c",IF(AND((((INDEX(D14:D23,AC27))*4)<(S6+AN26)),((INDEX(D14:D23,AC27)*4)>(S6-AN26))),"4c2v",0)) -> 4v2c | AD12: =IF(AND((((INDEX(C14:C23,AD27))*3)<(S5+AN25)),((INDEX(C14:C23,AD27)*3)>(S5-AN25))),"3v3c",IF(AND((((INDEX(D14:D23,AD27))*3)<(S6+AN26)),((INDEX(D14:D23,AD27)*3)>(S6-AN26))),"3c3v",0)) -> 0 | AE12: =IF(AND((((INDEX(C14:C23,AE27))*5)<(S5+AN25)),((INDEX(C14:C23,AE27)*5)>(S5-AN25))),"5v2c",IF(AND((((INDEX(D14:D23,AE27))*5)<(S6+AN26)),((INDEX(D14:D23,AE27)*5)>(S6-AN26))),"5c2v",0)) -> 0 | AF12: =IF(AND((((INDEX(C14:C23,AF27))*11)<(S5+AN25)),((INDEX(C14:C23,AF27)*11)>(S5-AN25))),"11v1c",IF(AND((((INDEX(D14:D23,AF27))*11)<(S6+AN26)),((INDEX(D14:D23,AF27)*11)>(S6-AN26))),"11c1v",0)) ->  | AG12: =IF(AND((((INDEX(C14:C23,AG27))*6)<(S5+AN25)),((INDEX(C14:C23,AG27)*6)>(S5-AN25))),"6v2c",IF(AND((((INDEX(D14:D23,AG27))*6)<(S6+AN26)),((INDEX(D14:D23,AG27)*6)>(S6-AN26))),"6c2v",IF(AND((((INDEX(C14:C23,AG27))*4)<(S5+AN25)),((INDEX(C14:C23,AG27)*4)>(S5-AN25))),"4v3c",IF(AND((((INDEX(D14:D23,AG27))*4)<(S6+AN26)),((INDEX(D14:D23,AG27)*4)>(S6-AN26))),"4c3v",IF(AND((((INDEX(C14:C23,AG27))*3)<(S5+AN25)),((INDEX(C14:C23,AG27)*3)>(S5-AN25))),"3v4c",IF(AND((((INDEX(D14:D23,AG27))*3)<(S6+AN26)),((INDEX(D14:D23,AG27)*3)>(S6-AN26))),"3c4v",0)))))) -> 4v3c | AH12: =IF(AND((((INDEX(C14:C23,AH27))*13)<(S5+AN25)),((INDEX(C14:C23,AH27)*13)>(S5-AN25))),"13v1c",IF(AND((((INDEX(D14:D23,AH27))*13)<(S6+AN26)),((INDEX(D14:D23,AH27)*13)>(S6-AN26))),"13c1v",0)) ->  | AI12: =IF(AND((((INDEX(C14:C23,AI27))*7)<(S5+AN25)),((INDEX(C14:C23,AI27)*7)>(S5-AN25))),"7v2c",IF(AND((((INDEX(D14:D23,AI27))*7)<(S6+AN26)),((INDEX(D14:D23,AI27)*7)>(S6-AN26))),"7c2v",0)) ->  | AJ12: =IF(AND((((INDEX(C14:C23,AJ27))*5)<(S5+AN25)),((INDEX(C14:C23,AJ27)*5)>(S5-AN25))),"5v3c",IF(AND((((INDEX(D14:D23,AJ27))*5)<(S6+AN26)),((INDEX(D14:D23,AJ27)*5)>(S6-AN26))),"5c3v",IF(AND((((INDEX(C14:C23,AJ27))*3)<(S5+AN25)),((INDEX(C14:C23,AJ27)*3)>(S5-AN25))),"3v5c",IF(AND((((INDEX(D14:D23,AJ27))*3)<(S6+AN26)),((INDEX(D14:D23,AJ27)*3)>(S6-AN26))),"3c5v",0)))) -> 5v3c | AK12: =IF(AND((((INDEX(C14:C23,AK27))*4)<(S5+AN25)),((INDEX(C14:C23,AK27)*4)>(S5-AN25))),"4v4c",IF(AND((((INDEX(D14:D23,AK27))*4)<(S6+AN26)),((INDEX(D14:D23,AK27)*4)>(S6-AN26))),"4c4v",IF(AND((((INDEX(C14:C23,AK27))*8)<(S5+AN25)),((INDEX(C14:C23,AK27)*8)>(S5-AN25))),"8v2c",IF(AND((((INDEX(D14:D23,AK27))*8)<(S6+AN26)),((INDEX(D14:D23,AK27)*8)>(S6-AN26))),"8c2v",0)))) -> 4v4c | AM12: =SMALL($V$26:$AK$26,10) -> 104.001 | AN12: =MATCH(SMALL($V$26:$AK$26,10),$V$26:$AK$26,0) -> 10 | AO12: 0 | AQ12: 0
B13: Power | C13: Vmp | D13: Imp | E13: length | F13: width | G13: For your choosen PV selection , values would be: | V13: Number of panels used | AL13: Number | AM13: =SMALL($V$26:$AK$26,11) -> 104.0013 | AN13: =MATCH(SMALL($V$26:$AK$26,11),$V$26:$AK$26,0) -> 13 | AO13: 0 | AQ13: 0
A14: 1 | B14: 50 | C14: 17.4 | D14: 2.9 | E14: 26 | F14: 25 | G14: Modules in Series (a string) | I14: =IFERROR(IF(J14=0,0,IF(MID(J14,2,1)="v",(MID(J14,1,1)),MID(J14,3,1))),ROUNDUP((H6/D26),0)) -> 4 | J14: =INDEX(AO3:AO18,MATCH(I11,AQ3:AQ18,0)) -> 4v1c | U14: Wattage | V14: 1 | W14: 2 | X14: 3 | Y14: 4 | Z14: 5 | AA14: 6 | AB14: 7 | AC14: 8 | AD14: 9 | AE14: 10 | AF14: 11 | AG14: 12 | AH14: 13 | AI14: 14 | AJ14: 15 | AK14: 16 | AL14: option | AM14: =SMALL($V$26:$AK$26,12) -> 154.0005 | AN14: =MATCH(SMALL($V$26:$AK$26,12),$V$26:$AK$26,0) -> 5 | AO14: 0 | AQ14: 0
A15: 2 | B15: 65 | C15: 17.9 | D15: 3.6 | E15: 40 | F15: 20 | I15: =D26*I14 -> 70.8 | J15: V | U15: 50 | V15: =V14*$U$15 -> 50 | W15: =W14*$U$15 -> 100 | X15: 150 | Y15: 200 | Z15: 250 | AA15: 300 | AB15: =IF($AK$29=1,$AB$14*U15,0) -> 350 | AC15: =AC14*$U$15 -> 400 | AD15: =IF($AK$29=1,$AD$14*U15,0) -> 450 | AE15: 500 | AF15: =IF($AK$29=1,$AF$14*U15,0) -> 550 | AG15: 600 | AH15: =IF($AK$29=1,$AH$14*U15,0) -> 650 | AI15: 700 | AJ15: =IF($AK$29=1,$AJ$14*U15,0) -> 750 | AK15: 800 | AL15: 1 | AM15: =SMALL($V$26:$AK$26,13) -> 154.0014 | AN15: =MATCH(SMALL($V$26:$AK$26,13),$V$26:$AK$26,0) -> 14 | AO15: 0 | AQ15: 0
A16: 3 | B16: 80 | C16: 17.6 | D16: 4.5 | E16: 40 | F16: 26 | G16: Number of PV Strings (Parallel) | I16: =IFERROR(IF(J14=0,0,IF(MID(J14,4,1)="c",(MID(J14,3,1)),MID(J14,1,1))),ROUNDUP(((H4/(I14*D26))/D27),0)) -> 1 | U16: 65 | V16: =V14*$U$16 -> 65 | W16: =W14*$U$16 -> 130 | X16: 195 | Y16: 260 | Z16: 325 | AA16: 390 | AB16: =IF($AK$29=1,$AB$14*U16,0) -> 455 | AC16: 520 | AD16: =IF($AK$29=1,$AD$14*U16,0) -> 585 | AE16: 650 | AF16: =IF($AK$29=1,$AF$14*U16,0) -> 715 | AG16: 780 | AH16: =IF($AK$29=1,$AH$14*U16,0) -> 845 | AI16: 910 | AJ16: =IF($AK$29=1,$AJ$14*U16,0) -> 975 | AK16: 1040 | AL16: 2 | AM16: =SMALL($V$26:$AK$26,14) -> 204.0015 | AN16: =MATCH(SMALL($V$26:$AK$26,14),$V$26:$AK$26,0) -> 15 | AO16: 5v3c | AQ16: 1
A17: 4 | B17: 95 | C17: 18.5 | D17: 5.1 | E17: 47.5 | F17: 21.5 | I17: =D27*I16 -> 7.9 | J17: A | U17: 80 | V17: =V14*$U$17 -> 80 | W17: =W14*$U$17 -> 160 | X17: 240 | Y17: 320 | Z17: 400 | AA17: 480 | AB17: 560 | AC17: 640 | AD17: 720 | AE17: 800 | AF17: 880 | AG17: 960 | AH17: 1040 | AI17: 1120 | AJ17: 1200 | AK17: 1280 | AL17: 3 | AM17: =SMALL($V$26:$AK$26,15) -> 254.0016 | AN17: =MATCH(SMALL($V$26:$AK$26,15),$V$26:$AK$26,0) -> 16 | AO17: 4v4c | AQ17: 1
A18: 5 | B18: 140 | C18: 17.7 | D18: 7.9 | E18: 59 | F18: 26 | G18: Total Number of Panels | I18: =(I14*I16) -> 4 | U18: 95 | V18: =V14*$U$18 -> 95 | W18: =W14*$U$18 -> 190 | X18: 285 | Y18: 380 | Z18: 475 | AA18: 570 | AB18: 665 | AC18: 760 | AD18: 855 | AE18: 950 | AF18: 1045 | AG18: 1140 | AH18: 1235 | AI18: 1330 | AJ18: 1425 | AK18: 1520 | AL18: 4 | AM18: =SMALL($V$26:$AK$26,16) -> 546 | AN18: =MATCH(SMALL($V$26:$AK$26,16),$V$26:$AK$26,0) -> 1 | AO18: 0 | AQ18: 0
A19: 6 | B19: 185 | C19: 36.2 | D19: 5.1 | E19: 62 | F19: 31 | I19: =I15*I17 -> 559.32 | J19: W | U19: 140 | V19: =V14*$U$19 -> 140 | W19: =W14*$U$19 -> 280 | X19: 420 | Y19: 560 | Z19: 700 | AA19: 840 | AB19: 980 | AC19: 1120 | AD19: =IF($AK$29=1,$AD$14*U19,0) -> 1260 | AE19: 1400 | AF19: 1540 | AG19: 1680 | AH19: 1820 | AI19: 1960 | AJ19: 2100 | AK19: 2240 | AL19: 5
A20: 7 | B20: 200 | C20: 36.9 | D20: 5.4 | E20: 62 | F20: 32 | G20: Total Peak Power | H20: =(D26*D27*I18)-(D26*D27*I18*M32) -> 550.5416403 | I20: Watts | K20: Recommended option | N20: Other recommended panels | U20: 185 | V20: =V14*$U$20 -> 185 | W20: =W14*$U$20 -> 370 | X20: 555 | Y20: 740 | Z20: 925 | AA20: 1110 | AB20: 1295 | AC20: 1480 | AD20: 1665 | AE20: 1850 | AF20: 2035 | AG20: 2220 | AH20: 2405 | AI20: 2590 | AJ20: 2775 | AK20: 2960 | AL20: 6
A21: 8 | B21: 230 | C21: 29.8 | D21: 7.72 | E21: 66 | F21: 37.5 | J21: =INDEX(AO3:AO18,MATCH(M22,AN3:AN18,0)) -> 4v1c | K21: Panel Option Number | M21: =INDEX(V27:AK27,M22) -> 5 | N21: options are: | U21: 200 | V21: =V14*$U$21 -> 200 | W21: =W14*$U$21 -> 400 | X21: 600 | Y21: 800 | Z21: 1000 | AA21: 1200 | AB21: 1400 | AC21: 1600 | AD21: 1800 | AE21: 2000 | AF21: 2200 | AG21: 2400 | AH21: 2600 | AI21: 2800 | AJ21: 3000 | AK21: 3200 | AL21: 7
A22: 9 | B22: 250 | C22: 31.1 | D22: 8.05 | E22: 66 | F22: 39.5 | K22: # of Panels | M22: =IF(AO3>0,AN3,IF(AO4>0,AN4,IF(AO5>0,AN5,IF(AO6>0,AN6,IF(AO7>0,AN7,IF(AO8>0,AN8,IF(AO9>0,AN9,IF(AO10>0,AN10,IF(AO11>0,AN11,IF(AO12>0,AN12,IF(AO13>0,AN13,IF(AO14>0,AN14,IF(AO15>0,AN15,IF(AO16>0,AN16,IF(AO17>0,AN17,IF(AO18>0,AN18)))))))))))))))) -> 4 | O22: =IF($AO$40<9,INDEX($AP$28:$AP$39,1+AT28),"") -> 1 | U22: 230 | V22: =V14*$U$22 -> 230 | W22: =W14*$U$22 -> 460 | X22: 690 | Y22: 920 | Z22: 1150 | AA22: 1380 | AB22: 1610 | AC22: 1840 | AD22: 2070 | AE22: 2300 | AF22: 2530 | AG22: 2760 | AH22: 2990 | AI22: 3220 | AJ22: 3450 | AK22: 3680 | AL22: 8
A23: 10 | B23: 315 | C23: 39.8 | D23: 7.92 | E23: 65.5 | F23: 52 | K23: Total Wattage | M23: =INDEX(U15:U24,M21)*M22 -> 560 | O23: =IF($AO$40<8,INDEX($AP$28:$AP$39,2+AT29),"") -> 3 | U23: 250 | V23: =V14*$U$23 -> 250 | W23: =W14*$U$23 -> 500 | X23: =X14*$U$23 -> 750 | Y23: 1000 | Z23: 1250 | AA23: 1500 | AB23: 1750 | AC23: 2000 | AD23: 2250 | AE23: 2500 | AF23: 2750 | AG23: 3000 | AH23: 3250 | AI23: 3500 | AJ23: 3750 | AK23: 4000 | AL23: 9
O24: =IF($AO$40<7,INDEX($AP$28:$AP$39,3+AT30),"") -> 10 | U24: 315 | V24: =V14*$U$24 -> 315 | W24: =W14*$U$24 -> 630 | X24: 945 | Y24: 1260 | Z24: 1575 | AA24: 1890 | AB24: 2205 | AC24: 2520 | AD24: 2835 | AE24: 3150 | AF24: 3465 | AG24: 3780 | AH24: 4095 | AI24: 4410 | AJ24: 4725 | AK24: 5040 | AL24: 10
B25: The chosen panel Power: | D25: =LOOKUP(I11,A14:A23,B14:B23) -> 140 | E25: Watts | K25: Modules in Series | M25: =IF(MID(J21,2,1)="v",(MID(J21,1,1)),MID(J21,3,1)) -> 4 | O25: =IF($AO$40<6,INDEX($AP$28:$AP$39,4+AT31),"") ->  | U25: T Watts | V25: =MIN(IF((V15:V24>=$S$8),V15:V24)) -> 0 | W25: =MIN(IF((W15:W24>=$S$8),W15:W24)) -> 630 | X25: =MIN(IF((X15:X24>=$S$8),X15:X24)) -> 555 | Y25: =MIN(IF((Y15:Y24>=$S$8),Y15:Y24)) -> 560 | Z25: =MIN(IF((Z15:Z24>=$S$8),Z15:Z24)) -> 700 | AA25: =MIN(IF((AA15:AA24>=$S$8),AA15:AA24)) -> 570 | AB25: =MIN(IF((AB15:AB24>=$S$8),AB15:AB24)) -> 560 | AC25: =MIN(IF((AC15:AC24>=$S$8),AC15:AC24)) -> 640 | AD25: =MIN(IF((AD15:AD24>=$S$8),AD15:AD24)) -> 585 | AE25: =MIN(IF((AE15:AE24>=$S$8),AE15:AE24)) -> 650 | AF25: =MIN(IF((AF15:AF24>=$S$8),AF15:AF24)) -> 550 | AG25: =MIN(IF((AG15:AG24>=$S$8),AG15:AG24)) -> 600 | AH25: =MIN(IF((AH15:AH24>=$S$8),AH15:AH24)) -> 650 | AI25: =MIN(IF((AI15:AI24>=$S$8),AI15:AI24)) -> 700 | AJ25: =MIN(IF((AJ15:AJ24>=$S$8),AJ15:AJ24)) -> 750 | AK25: =MIN(IF((AK15:AK24>=$S$8),AK15:AK24)) -> 800 | AM25: +/- volts | AN25: 13
B26: The chosen panel Voltage: | D26: =LOOKUP(I11,A14:A23,C14:C23) -> 17.7 | E26: Volts | K26: Voltage generated | M26: =(INDEX(C14:C23,M21))*M25 -> 70.8 | N26: V | O26: =IF($AO$40<5,INDEX($AP$28:$AP$39,5+AT32),"") ->  | U26: Excess | V26: =ABS(V25-$S$8) -> 546 | W26: =ABS(W25-$S$8)+0.0002 -> 84.0002 | X26: =ABS(X25-$S$8)+0.0003 -> 9.0003 | Y26: =ABS(Y25-$S$8)+0.0004 -> 14.0004 | Z26: =ABS(Z25-$S$8)+0.0005 -> 154.0005 | AA26: =ABS(AA25-$S$8)+0.0006 -> 24.0006 | AB26: =ABS(AB25-$S$8)+0.0007 -> 14.0007 | AC26: =ABS(AC25-$S$8)+0.0008 -> 94.0008 | AD26: =ABS(AD25-$S$8)+0.0009 -> 39.0009 | AE26: =ABS(AE25-$S$8)+0.001 -> 104.001 | AF26: =ABS(AF25-$S$8)+0.0011 -> 4.0011 | AG26: =ABS(AG25-$S$8)+0.0012 -> 54.0012 | AH26: =ABS(AH25-$S$8)+0.0013 -> 104.0013 | AI26: =ABS(AI25-$S$8)+0.0014 -> 154.0014 | AJ26: =ABS(AJ25-$S$8)+0.0015 -> 204.0015 | AK26: =ABS(AK25-$S$8)+0.0016 -> 254.0016 | AM26: +/- current | AN26: 0.8
B27: The chosen panel Current: | D27: =LOOKUP(I11,A14:A23,D14:D23) -> 7.9 | E27: Amps | K27: Modules in Parallel | M27: =IF(MID(J21,4,1)="c",(MID(J21,3,1)),MID(J21,1,1)) -> 1 | O27: =IF($AO$40<4,INDEX($AP$28:$AP$39,6+AT33),"") ->  | U27: Rows | V27: =MATCH(V25,V15:V24,0) ->  | W27: =MATCH(W25,W15:W24,0) -> 10 | X27: =MATCH(X25,X15:X24,0) -> 6 | Y27: 5 | Z27: 5 | AA27: =MATCH(AA25,AA15:AA24,0) -> 4 | AB27: =IF(AK30=0,0,MATCH(AB25,AB15:AB24,0)) -> 0 | AC27: 3 | AD27: 2 | AE27: 2 | AF27: =IF(AK30=0,0,MATCH(AF25,AF15:AF24,0)) -> 0 | AG27: 1 | AH27: =IF(AK30=0,0,MATCH(AH25,AH15:AH24,0)) -> 0 | AI27: =IF(AK30=0,0,MATCH(AI25,AI15:AI24,0)) -> 0 | AJ27: 1 | AK27: 1 | AN27: Option | AO27: Y/N | AP27: Order | AS27: Other Options
K28: Current generated | M28: =(INDEX(D14:D23,M21))*M27 -> 7.9 | N28: A | O28: =IF($AO$40<3,INDEX($AP$28:$AP$39,7+AT34),"") ->  | AN28: 1 | AO28: =IF(AQ28>0,1.0001,0.0001) -> 1.0001 | AP28: =INDEX($AN$28:$AN$39,MATCH(LARGE($AO$28:$AO$39,1),$AO$28:$AO$39,0)) -> 1 | AQ28: =COUNTIF($AQ$3:$AQ$18,AN28) -> 3 | AS28: =IF($M$21=AP28,1,0) -> 0 | AT28: =SUM(AS28) -> 0
A29: NOTE: A pump controller will be needed to control the PV and on/off float valves. | K29: Actual power generated | M29: =M28*M26 -> 559.32 | N29: W | O29: =IF($AO$40<2,INDEX($AP$28:$AP$39,8+AT35),"") ->  | V29: Col. | W29: =MATCH(MIN(V26:AK26),V26:AK26,0) -> 11 | Y29: Row | Z29: =INDEX(V27:AL27,1,W29) -> 0 | AG29: Use odd numbers? | AK29: 1 | AN29: 2 | AO29: =IF(AQ29>0,1.00009,0.00009) -> 9e-05 | AP29: =INDEX($AN$28:$AN$39,MATCH(LARGE($AO$28:$AO$39,2),$AO$28:$AO$39,0)) -> 3 | AQ29: =COUNTIF($AQ$3:$AQ$18,AN29) -> 0 | AS29: =IF($M$21=AP29,1,0) -> 0 | AT29: =SUM(AS28:AS29) -> 0
A30: These are selected to marry with a particular pump type and size. | O30: =IF($AO$40<1,INDEX($AP$28:$AP$39,9+AT36),"") ->  | AG30: Disable(7,11,13,14) | AK30: 0 | AN30: 3 | AO30: =IF(AQ30>0,1.00008,0.00008) -> 1.00008 | AP30: =INDEX($AN$28:$AN$39,MATCH(LARGE($AO$28:$AO$39,3),$AO$28:$AO$39,0)) -> 5 | AQ30: 1 | AS30: 1 | AT30: =SUM(AS28:AS30) -> 1
A31: Step 11: Proceed to the next sheet titled Design Spec where you will see your design scenario's components and example prices. | K31: Wire size recommended | M31: =IFERROR(H45,"None") -> Wire 8 | O31: =IF($AO$40<0,INDEX($AP$28:$AP$39,10+AT37),"") ->  | AN31: 4 | AO31: =IF(AQ31>0,1.00007,0.00007) -> 7e-05 | AP31: =INDEX($AN$28:$AN$39,MATCH(LARGE($AO$28:$AO$39,4),$AO$28:$AO$39,0)) -> 10 | AQ31: 0 | AS31: 0 | AT31: =SUM(AS28:AS31) -> 1
K32: Wire power losses | M32: =IF(M31="Wire 12",H40,IF(M31="Wire 10",I40,IF(M31="Wire 8",J40,IF(M31="Wire 6",K40,IF(M31="Wire 4",L40,0))))) -> 0.01569470014 | N32: Acceptable voltage wire losses | AN32: 5 | AO32: =IF(AQ32>0,1.00006,0.00006) -> 1.00006 | AP32: =INDEX($AN$28:$AN$39,MATCH(LARGE($AO$28:$AO$39,5),$AO$28:$AO$39,0)) -> 2 | AQ32: 1 | AS32: 0 | AT32: =SUM(AS28:AS32) -> 1
K33: Wire voltage losses | M33: =IF(M31="Wire 12",H42,IF(M31="Wire 10",I42,IF(M31="Wire 8",J42,IF(M31="Wire 6",K42,IF(M31="Wire 4",L42,0))))) -> 0.02172276836 | O33: 0.03 | AN33: 6 | AO33: =IF(AQ33>0,1.00005,0.00005) -> 5e-05 | AP33: =INDEX($AN$28:$AN$39,MATCH(LARGE($AO$28:$AO$39,6),$AO$28:$AO$39,0)) -> 4 | AQ33: 0 | AS33: 0 | AT33: =SUM(AS28:AS33) -> 1
AS34: 0 | AT34: =SUM(AS28:AS34) -> 1
AS35: 0 | AT35: =SUM(AS28:AS35) -> 1
H36: Wire 12 | I36: Wire 10 | J36: Wire 8 | K36: Wire 6 | L36: Wire 4 | AN36: 7 | AO36: =IF(AQ36>0,1.00004,0.00004) -> 4e-05 | AP36: =INDEX($AN$28:$AN$39,MATCH(LARGE($AO$28:$AO$39,7),$AO$28:$AO$39,0)) -> 6 | AQ36: 0 | AS36: 0 | AT36: =SUM(AS28:AS36) -> 1
A37: Distance from PV to Switch | D37: 0 | G37: Wire Resistance | H37: =(($D$40)*2)*0.1588/100 -> 0.49228 | I37: =(($D$40)*2)*0.0999/100 -> 0.30969 | J37: =(($D$40)*2)*0.0628/100 -> 0.19468 | K37: =(($D$40)*2)*0.0395/100 -> 0.12245 | L37: =(($D$40)*2)*0.0249/100 -> 0.07719 | AN37: 8 | AO37: =IF(AQ37>0,1.00003,0.00003) -> 3e-05 | AP37: =INDEX($AN$28:$AN$39,MATCH(LARGE($AO$28:$AO$39,8),$AO$28:$AO$39,0)) -> 7 | AQ37: 0 | AS37: 0 | AT37: =SUM(AS28:AS37) -> 1
A38: Distance from PV to Well | D38: 50 | G38: Total Resistance | H38: =D43+H37 -> 11.30958769 | I38: =D43+I37 -> 11.12699769 | J38: =D43+J37 -> 11.01198769 | K38: =D43+K37 -> 10.93975769 | L38: =D43+L37 -> 10.89449769 | AN38: 9 | AO38: =IF(AQ38>0,1.00002,0.00002) -> 2e-05 | AP38: =INDEX($AN$28:$AN$39,MATCH(LARGE($AO$28:$AO$39,9),$AO$28:$AO$39,0)) -> 8 | AQ38: 0 | AS38: 0 | AT38: =SUM(AS28:AS38) -> 1
A39: Pump Depth | D39: ='Total Dynamic Head'!J3+'Total Dynamic Head'!J4 -> 105 | G39: Power Losses | H39: =((($D$27*$I$16)*0.85)^2)*H37 -> 22.19750824 | I39: =((($D$27*$I$16)*0.85)^2)*I37 -> 13.96430147 | J39: =((($D$27*$I$16)*0.85)^2)*J37 -> 8.778359683 | K39: =((($D$27*$I$16)*0.85)^2)*K37 -> 5.521420501 | L39: =((($D$27*$I$16)*0.85)^2)*L37 -> 3.480591658 | AN39: 10 | AO39: =IF(AQ39>0,1.00001,0.00001) -> 1.00001 | AP39: =INDEX($AN$28:$AN$39,MATCH(LARGE($AO$28:$AO$39,10),$AO$28:$AO$39,0)) -> 9 | AQ39: 1 | AS39: 0 | AT39: =SUM(AS28:AS39) -> 1
A40: Total Wire Length | D40: =SUM(D37:D39) -> 155 | G40: Percentage | H40: =H39/(D26*D27*I18) -> 0.03968659845 | I40: =I39/(D26*D27*I18) -> 0.02496656917 | J40: =J39/(D26*D27*I18) -> 0.01569470014 | K40: =K39/(D26*D27*I18) -> 0.00987166649 | L40: =L39/(D26*D27*I18) -> 0.006222898623 | AN40: Useless | AO40: =COUNTIF(AO28:AO39,"<1") -> 6 | AP40: 1
G41: Voltage Losses | H41: =H37*$D$27*$I$16 -> 3.889012 | I41: =I37*$D$27*$I$16 -> 2.446551 | J41: =J37*$D$27*$I$16 -> 1.537972 | K41: =K37*$D$27*$I$16 -> 0.967355 | L41: =L37*$D$27*$I$16 -> 0.609801
G42: Percentage | H42: =((($D$27*$I$16)*H37))/($D$26*$I$14) -> 0.05492954802 | I42: =((($D$27*$I$16)*I37))/($D$26*$I$14) -> 0.03455580508 | J42: =((($D$27*$I$16)*J37))/($D$26*$I$14) -> 0.02172276836 | K42: =((($D$27*$I$16)*K37))/($D$26*$I$14) -> 0.01366320621 | L42: =((($D$27*$I$16)*L37))/($D$26*$I$14) -> 0.008613008475
A43: Pump Resistance | D43: =((H6^2)/H4) -> 10.81730769 | G43: Current? | H43: =IF((I16*D27)>=20,"Unacceptable","Acceptable") -> Acceptable | I43: =IF((I16*D27)>=30,"Unaceptable","Acceptable") -> Acceptable | J43: =IF((I16*D27)>=40,"Unacceptable","Acceptable") -> Acceptable | K43: =IF((I16*D27)>=55,"Unacceptable","Acceptable") -> Acceptable | L43: =IF((I16*D27)>=70,"Unacceptable","Acceptable") -> Acceptable
A44: Float Valve Resistance | D44: 0
A45: Controller Resistance | D45: 0 | G45: Wire Size recommended | H45: =IF(AND(H43="Acceptable",H42<O33),"Wire 12",IF(AND(I42<O33,I43="Acceptable"),"Wire 10",IF(AND(J42<O33,J43="Acceptable"),"Wire 8",IF(AND(K42<O33,K43="Acceptable"),"Wire 6",IF(AND(L42<O33,L43="Acceptable"),"Wire 4","Too much power losses"))))) -> Wire 8 | I45: or bigger
F46: Acceptable Percentage Losses
J47: *Copper
A49: WARNING!: The option that you have selected is not suitable to satisfy the system power requirements. This could be because the array configuration that satisfies the voltage and power requirements generates a larger amount of power than required and best configurations are available with other panels.

Sheet Design Spec
A1: Design Specification Summary ( est. 2012 dollar amounts)*
A3: Item | B3: Description | D3: Quantity | E3: ~ | F3: Price
A4: Submersible solar water pump by Sun Pumps | B4: ='Pump Selection'!T16 -> SCS-10-230 | D4: 1 | F4: =IF(B4="SDS-Q-128",820,IF(B4="SDS-Q-135",820,IF(B4="SDS-T-135",530,IF(B4="SCS-18-45",1950,IF(B4="SCS-12-95",1700,IF(B4="SCS-3-200",2000,IF(B4="SCS-8-90",1600,IF(B4="SCS-18-160",1900,IF(B4="SCS-4-325",2100,IF(B4="SCS-6-185",1750,IF(B4="SCS-10-230",2100,IF(B4="SCS-11-120",1980,IF(B4="SCS-14-160",2050,IF(B4="SCS-30-115",2075,IF(B4="SCS-3-425",2200,0))))))))))))))) -> 2100
A5: PV Solar Module(s) with j/box | B5: with a chosen Wattage Size of | C5: ='Array Sizing'!D25 -> 140 | D5: ='Array Sizing'!I18 -> 4 | F5: =2.5*C5*D5 -> 1400
A6: Fixed PV Rack System | D6: =IF(D7=1,0,1) -> 1 | F6: =IF(D5=1,250,IF(D5=2, 300,IF(D5=3,550,IF(D5=4,800,1000))))*D6 -> 800
A7: Tracker system | B7: 1-Axis Tracker System | D7: =IF('Solar Resource'!$K$6="1-Axis Tracker",1,0) -> 0 | F7: =('Array Sizing'!$D$27*'Array Sizing'!$D$26*'Array Sizing'!$I$18)*2.3*D7 -> 0
A8: DC Solar Pump Controller & float level controller | B8: The specific size and type is dependent on Pump Voltage and should be sized accordingly | C8: =IF('Pump Selection'!T17<31,"15-30V",IF('Pump Selection'!T17<61,"30-60V",IF('Pump Selection'!T17<71,"30-60V",IF('Pump Selection'!T17<91,"60-90V",IF('Pump Selection'!T17<121,"90-120V","?"))))) -> 60-90V | D8: 1 | F8: 400
A9: =IF('Array Sizing'!M31="Wire 12","#12 UF wire",IF('Array Sizing'!M31="Wire 10","#10 UF wire",IF('Array Sizing'!M31="Wire 8","#8 UF wire",IF('Array Sizing'!M31="Wire 6","#6 UF wire",IF('Array Sizing'!M31="Wire 4","#4 UF wire"))))) -> #8 UF wire | B9: AWG sized wire for PV-Pump | D9: ='Array Sizing'!$D$40*1.25 -> 193.75 | E9: ft | F9: =IF(D9<250,200,400) -> 200
A10: Solid copper ground rod | D10: 8 | E10: ft | F10: 25
A11: PVC pipe | B11: ='Total Dynamic Head'!$J$12 -> 1 | C11: in | D11: ='Total Dynamic Head'!$J$10+10 -> 160 | E11: ft | F11: =(ROUNDUP(D11,0)/10)*5 -> 80
A12: Plastic Storage Tank | B12: =ROUNDUP(('Daily Water Requirement'!N31),-3) -> 9000 | C12: gallons | D12: 1 | F12: =B12*0.5 -> 4500
A13: Fuse Breaker | D13: 1 | F13: 60
A14: Pipe Fittings | B14: Globe Valve, Fully Open | D14: ='Total Dynamic Head'!J18 -> 1 | F14: =D14*10 -> 10
B15: Gate Valve, Fully Open | D15: ='Total Dynamic Head'!J19 -> 1 | F15: =D15*20 -> 20
B16: Gate Valve, 3/4 Open | D16: ='Total Dynamic Head'!J20 -> 0 | F16: =D16*20 -> 0
B17: Gate Valve, 1/2 Open | D17: ='Total Dynamic Head'!J21 -> 0 | F17: =D17*20 -> 0
B18: Butterfly Valve | D18: ='Total Dynamic Head'!J22 -> 0 | F18: =D18*20 -> 0
B19: Swing Check Valve, Fully Open | D19: ='Total Dynamic Head'!J23 -> 1 | F19: =D19*20 -> 20
B20: In-Line Ball Check Valve, Fully Open | D20: ='Total Dynamic Head'!J24 -> 0 | F20: =D20*40 -> 0
B21: 90 Degree Standard Elbow | D21: ='Total Dynamic Head'!J25 -> 1 | F21: =D21*1.5 -> 1.5
B22: 45 Degree Standard Elbow | D22: ='Total Dynamic Head'!J26 -> 0 | F22: =D22*1.75 -> 0
B23: 90 Degree Street Elbow | D23: ='Total Dynamic Head'!J27 -> 0 | F23: =D23*1.5 -> 0
B24: Standard Tee, Flow Through Run | D24: ='Total Dynamic Head'!J28 -> 0 | F24: =D24*1.75 -> 0
B25: Standard Tee, Flow Through Branch | D25: ='Total Dynamic Head'!J29 -> 0 | F25: =D25*1.75 -> 0
A26: =TODAY() -> 2014-01-29 | B26: Grand Total of the System | E26: =SUM(F4:F25) -> 9616.5
A27: Federal Tax Credits (as of 2012) | C27: 0.3
A28: State Tax Credits average about 10% | C28: 0.1
A29: You may go to the Conclusion sheet for an example picture | B29: Grand Total of the System with Tax Credits | E29: =E26*(1-(C27+C28)) -> 5769.9
A30: For specific state tax credits visit the link: | B30: http://www.dsireusa.org/
A37: http://www.dsireusa.org/

Sheet Conclusion
A1: Simplified sketch of an example system (not your specs)
A2: Before exiting, print any sheets that you will need. Contact your extension agent if you have any questions.
P18: =IF(AND('Solar Resource'!K4="Summer",G29<L28),"System configuration is for Summer only. Your water requirements will NOT be satisfied during the WINTER season.","") -> 
A27: References: Diagrams are from Masters, G. M. (2004). Renewable and Efficient Electric Power Systems. Hoboken: John Wiley & Sons, Inc.
A28: Actual Water Pumped on a Full Sun day in | E28: Summer | F28: is: | G28: =IF(OR('Pump Selection'!$T$16="Q-128",'Pump Selection'!$T$16="Q-135",'Pump Selection'!$T$16="T-128"),('Array Sizing'!$D$26*'Array Sizing'!$D$27*'Array Sizing'!$I$18*'Solar Resource'!AF13*60*'Pump Selection'!$E$19*'Pump Selection'!#REF!)/(0.1885*'Total Dynamic Head'!$L$34),('Array Sizing'!$D$26*'Array Sizing'!$D$27*'Array Sizing'!$I$18*'Solar Resource'!AF13*60*'Pump Selection'!$E$19*'Pump Selection'!$E$16)/(0.1885*'Total Dynamic Head'!$L$34)) -> 3792.410206 | H28: Gallons per Day | J28: for required water of: | L28: ='Daily Water Requirement'!$N$28 -> 2734.25 | M28: Gallons per Day
A29: Actual Water Pumped on a Full Sun day in | E29: Winter | F29: is: | G29: =IF(OR('Pump Selection'!$T$16="Q-128",'Pump Selection'!$T$16="Q-135",'Pump Selection'!$T$16="T-128"),('Array Sizing'!$D$26*'Array Sizing'!$D$27*'Array Sizing'!$I$18*'Solar Resource'!AF12*60*'Pump Selection'!$E$19*'Pump Selection'!#REF!)/(0.1885*'Total Dynamic Head'!$L$34),('Array Sizing'!$D$26*'Array Sizing'!$D$27*'Array Sizing'!$I$18*'Solar Resource'!AF12*60*'Pump Selection'!$E$19*'Pump Selection'!$E$16)/(0.1885*'Total Dynamic Head'!$L$34)) -> 3201.836403 | H29: Gallons per Day
